Workbook

Sheet 0-MATERIALI
B2: DEFINIZIONE MATERIALI ESISTENTI MURATURA | U2: 1 | V2: Analisi Pushover gM = 1 | AA2: 2 | AB2: Fattore 0.7 tra fvko e to | BF2: Tipologia Muratura | BG2: Resistenza media a compressione | BJ2: Resistenza media a taglio | BM2: Valore medio del Modulo Elastico | BP2: Valore medio del Modulo di elasticità tangenziale | BS2: Peso specifico medio | BT2: SPECIFICHE MIGLIORATIVE MATERIALE
B3: Cod. | C3: TIPO MURATURA | D3: Livello Conoscenza | F3: RESISTENZA MATERIALI DA PROVE | J3: CARATTERISTICHE MECCANICHE MEDIE ADOTTATE (valori comprensivi di coefficienti correttivi e ridotti del Fattore di Confidenza) | O3: COEFFICIENTI CORRETTIVI (COMPRESE EVENTUALI INIEZIONI) | V3: Analisi Spettro e Fattore q - gM = 2 | AB3: Fattore 1.0 tra fvko e to | AV3: fm | AY3: to | BB3: Em | BC3: G | BD3: w | BG3: fm (Mpa) | BJ3: t0 (Mpa) | BM3: E (Mpa) | BP3: G (Mpa) | BS3: w (KN/m3) | BT3: Malta buona | BV3: Giunti sottili (<10mm) | BY3: Ricorsi o listature | CA3: Nucleo scadente e/o ampio | CC3: Iniezione di miscele leganti (*) | CE3: Diatono CAM
F4: fm,pr | G4: to,pr | H4: Empr | I4: Gmpr | J4: fm | K4: to | L4: Em | M4: G | N4: W | O4: Malta Buona | P4: Giunti sottili (<10mm) | Q4: Ricorsi o listature | R4: Nucleo scadente e/o ampio | S4: Iniezione di miscele leganti | T4: Diatono esistente | U4: INDICE | V4: Malta buona | Y4: Giunti sottili | AB4: Ricorsi | AE4: Nucleo scadente | AH4: Diatono esistente | AK4: iniezioni | AN4: COEFFICIENTI CORRETTIVI -MIGLIORMANETO | AQ4: COEFFICIENTI CORRETTIVI | AT4: Diatono | AV4: Mpa | AY4: Mpa | BB4: Mpa | BC4: Mpa | BD4: Peso | BG4: Min | BH4: Max | BI4: Medio | BJ4: Min | BK4: Max | BL4: Medio | BM4: Min | BN4: Max | BO4: Medio | BP4: Min | BQ4: Max | BR4: Medio | BT4: Resistenza | BU4: Deformabilità | BV4: Compressione | BW4: Taglio | BX4: Deformabilità | BY4: Resistenza | BZ4: Deformabilità | CA4: Resistenza | CB4: Deformabilità | CC4: Resistenza | CD4: Deformabilità
D5: LV | E5: N°prove | F5: Mpa | G5: Mpa | H5: Mpa | I5: Mpa | J5: Mpa | K5: Mpa | L5: Mpa | M5: Mpa | N5: KN/mc | V5: fm | W5: t | X5: E-G | Y5: fm | Z5: t | AA5: E-G | AB5: fm | AC5: t | AD5: E-G | AE5: fm | AF5: t | AG5: E-G | AH5: fm | AI5: t | AJ5: E-G | AK5: fm | AL5: t | AM5: E-G | AN5: fm | AO5: t | AP5: E-G | AQ5: fm | AR5: t | AS5: E-G | AV5: Min | AW5: max | AX5: Medio | AY5: Min | AZ5: max | BA5: Medio | BB5: medio | BC5: medio | BD5: medio | BF5: Muratura in pietrame disordinata (ciottoli, pietre erratiche e irregolari) | BG5: 1 | BH5: 1.8 | BI5: =AVERAGE(BG5:BH5) -> 1.4 | BJ5: 0.02 | BK5: 0.032 | BL5: =AVERAGE(BJ5:BK5) -> 0.026 | BM5: 690 | BN5: 1050 | BO5: =AVERAGE(BM5:BN5) -> 870 | BP5: 230 | BQ5: 350 | BR5: =AVERAGE(BP5:BQ5) -> 290 | BS5: 19 | BT5: 1.5 | BU5: 1.5 | BV5: 1 | BW5: 1 | BX5: 1 | BY5: 1.3 | BZ5: 1 | CA5: 0.9 | CB5: 0.9 | CC5: 2 | CD5: 2 | CE5: 1.5
B6: =IF(C6="","","MUR1") -> MUR1 | C6: Muratura a conci di pietra tenera (tufo, calcarenite, ecc.) | D6: LC3 | E6: >=3 | J6: =IF($C6="","",IF(OR(D6="LC1",D6="LC2"),IF(D6="LC1",AV6,AX6),IF(D6="LC3",IF(F6="",AX6,IF(E6=">=3",F6,IF(E6=2,IF(F6<AV6,F6,IF(F6>AW6,AW6,AX6)),IF(E6=1,IF(F6<AV6,F6,AX6)))))))/(IF(D6="LC1",1.35,IF(D6="LC2",1.2,1)))) -> 1.9 | K6: =IF($C6="","",IF(OR(D6="LC1",D6="LC2"),IF(D6="LC1",AY6,BA6),IF(D6="LC3",IF(G6="",BA6,IF(E6=">=3",G6,IF(E6=2,IF(G6<AY6,G6,IF(G6>AZ6,AZ6,BA6)),IF(E6=1,IF(G6<AY6,G6,BA6)))))))/(IF(D6="LC1",1.35,IF(D6="LC2",1.2,1)))) -> 0.035 | L6: =IF($C6="","",IF(D6="LC1",BB6,IF(OR(D6="LC2",D6="LC3"),IF(H6="",BB6,H6),0))) -> 1080 | M6: =IF($C6="","",IF(D6="LC1",BC6,IF(OR(D6="LC2",D6="LC3"),IF(I6="",BC6,I6),0))) -> 360 | N6: =IF($C6="","",BD6) -> 16 | O6: NO | P6: NO | Q6: NO | R6: NO | S6: NO | T6: NO | U6: =IF(C6="","",MATCH(C6,$BF$5:$BF$15,0)) -> 4 | V6: =IF(U6="","",IF(O6="SI",INDEX($BT$5:$BT$15,U6),1)) -> 1 | W6: =IF(U6="","",IF(O6="SI",INDEX($BT$5:$BT$15,U6),1)) -> 1 | X6: =IF(U6="","",IF(O6="SI",INDEX($BU$5:$BU$15,U6),1)) -> 1 | Y6: =IF(U6="","",IF(P6="SI",INDEX($BV$5:$BV$15,U6),1)) -> 1 | Z6: =IF(U6="","",IF(P6="SI",INDEX($BW$5:$BW$15,U6),1)) -> 1 | AA6: =IF(U6="","",IF(P6="SI",INDEX($BX$5:$BX$15,U6),1)) -> 1 | AB6: =IF(U6="","",IF(Q6="SI",INDEX($BY$5:$BY$15,U6),1)) -> 1 | AC6: =IF(U6="","",IF(Q6="SI",INDEX($BY$5:$BY$15,U6),1)) -> 1 | AD6: =IF(U6="","",IF(Q6="SI",INDEX($BZ$5:$BZ$15,U6),1)) -> 1 | AE6: =IF(U6="","",IF(R6="SI",INDEX($CA$5:$CA$15,U6),1)) -> 1 | AF6: =IF(U6="","",IF(R6="SI",INDEX($CA$5:$CA$15,U6),1)) -> 1 | AG6: =IF(U6="","",IF(R6="SI",INDEX($CB$5:$CB$15,U6),1)) -> 1 | AH6: =IF(U6="","",IF(T6="SI",INDEX($CE$5:$CE$15,U6),1)) -> 1 | AI6: =IF(U6="","",IF(T6="SI",INDEX($CE$5:$CE$15,U6),1)) -> 1 | AJ6: =IF(X6="","",1) -> 1 | AK6: =IF(U6="","",IF(S6="SI",INDEX($CC$5:$CC$15,U6),1)) -> 1 | AL6: =IF(U6="","",IF(S6="SI",INDEX($CC$5:$CC$15,U6),1)) -> 1 | AM6: =IF(U6="","",IF(S6="SI",INDEX($CD$5:$CD$15,U6),1)) -> 1 | AN6: =IF(U6="",1,IF(V6>1,AK6+V6-1,AK6*V6)*AE6*AB6*Y6*AH6) -> 1 | AO6: =IF(V6="",1,IF(W6>1,AL6+W6-1,AL6*W6)*AF6*AC6*Z6*AH6) -> 1 | AP6: =IF(W6="",1,IF(X6>1,AM6+X6-1,AM6*X6)*AG6*AD6*AA6*AJ6) -> 1 | AQ6: =IF(U6="",1,V6*AE6*AB6*Y6*AH6) -> 1 | AR6: =IF(V6="",1,W6*AF6*AC6*Z6*AI6) -> 1 | AS6: =IF(W6="",1,X6*AG6*AD6*AA6*AJ6) -> 1 | AT6: =IF(U6="",1,INDEX($CE$5:$CE$15,U6)) -> 1.5 | AV6: =IF($C6="","",INDEX(BG$5:BG$15,MATCH($C6,$BF$5:$BF$15,0))*AN6) -> 1.4 | AW6: =IF($C6="","",INDEX(BH$5:BH$15,MATCH($C6,$BF$5:$BF$15,0))*AN6) -> 2.4 | AX6: =IF($C6="","",INDEX(BI$5:BI$15,MATCH($C6,$BF$5:$BF$15,0))*AN6) -> 1.9 | AY6: =IF($C6="","",INDEX(BJ$5:BJ$15,MATCH($C6,$BF$5:$BF$15,0))*AO6) -> 0.028 | AZ6: =IF($C6="","",INDEX(BK$5:BK$15,MATCH($C6,$BF$5:$BF$15,0))*AO6) -> 0.042 | BA6: =IF($C6="","",INDEX(BL$5:BL$15,MATCH($C6,$BF$5:$BF$15,0))*AO6) -> 0.035 | BB6: =IF(C6="","",INDEX(BO$5:BO$15,MATCH($C6,$BF$5:$BF$15,0))*AP6) -> 1080 | BC6: =IF(C6="","",INDEX(BR$5:BR$15,MATCH($C6,$BF$5:$BF$15,0))*AP6) -> 360 | BD6: =IF(D6="","",INDEX(BS$5:BS$15,MATCH($C6,$BF$5:$BF$15,0))) -> 16 | BF6: Muratura a conci sbozzati, con paramento di limitato spessore e nucleo interno | BG6: 2 | BH6: 3 | BI6: =AVERAGE(BG6:BH6) -> 2.5 | BJ6: 0.035 | BK6: 0.051 | BL6: 0.043 | BM6: 1020 | BN6: 1440 | BO6: 1230 | BP6: 340 | BQ6: 480 | BR6: 410 | BS6: 20 | BT6: 1.4 | BU6: 1.4 | BV6: 1.2 | BW6: 1.1 | BX6: 1.2 | BY6: 1.2 | BZ6: 1 | CA6: 0.8 | CB6: 0.8 | CC6: 1.7 | CD6: 1.7 | CE6: 1.5
B7: =IF(C7="","","MUR2") ->  | J7: =IF($C7="","",IF(OR(D7="LC1",D7="LC2"),IF(D7="LC1",AV7,AX7),IF(D7="LC3",IF(F7="",AX7,IF(E7=">=3",F7,IF(E7=2,IF(F7<AV7,F7,IF(F7>AW7,AW7,AX7)),IF(E7=1,IF(F7<AV7,F7,AX7)))))))/(IF(D7="LC1",1.35,IF(D7="LC2",1.2,1)))) ->  | L7: =IF($C7="","",IF(D7="LC1",BB7,IF(OR(D7="LC2",D7="LC3"),IF(H7="",BB7,H7),0))) ->  | U7: =IF(C7="","",MATCH(C7,$BF$5:$BF$15,0)) ->  | V7: =IF(U7="","",IF(O7="SI",INDEX($BT$5:$BT$15,U7),1)) ->  | W7: =IF(U7="","",IF(O7="SI",INDEX($BT$5:$BT$15,U7),1)) ->  | X7: =IF(U7="","",IF(O7="SI",INDEX($BU$5:$BU$15,U7),1)) ->  | Y7: =IF(U7="","",IF(P7="SI",INDEX($BV$5:$BV$15,U7),1)) ->  | Z7: =IF(U7="","",IF(P7="SI",INDEX($BW$5:$BW$15,U7),1)) ->  | AA7: =IF(U7="","",IF(P7="SI",INDEX($BX$5:$BX$15,U7),1)) ->  | AB7: =IF(U7="","",IF(Q7="SI",INDEX($BY$5:$BY$15,U7),1)) ->  | AC7: =IF(U7="","",IF(Q7="SI",INDEX($BY$5:$BY$15,U7),1)) ->  | AD7: =IF(U7="","",IF(Q7="SI",INDEX($BZ$5:$BZ$15,U7),1)) ->  | AE7: =IF(U7="","",IF(R7="SI",INDEX($CA$5:$CA$15,U7),1)) ->  | AF7: =IF(U7="","",IF(R7="SI",INDEX($CA$5:$CA$15,U7),1)) ->  | AG7: =IF(U7="","",IF(R7="SI",INDEX($CB$5:$CB$15,U7),1)) ->  | AH7: =IF(U7="","",IF(T7="SI",INDEX($CE$5:$CE$15,U7),1)) ->  | AI7: =IF(U7="","",IF(T7="SI",INDEX($CE$5:$CE$15,U7),1)) ->  | AJ7: =IF(X7="","",1) ->  | AK7: =IF(U7="","",IF(S7="SI",INDEX($CC$5:$CC$15,U7),1)) ->  | AL7: =IF(U7="","",IF(S7="SI",INDEX($CC$5:$CC$15,U7),1)) ->  | AM7: =IF(U7="","",IF(S7="SI",INDEX($CD$5:$CD$15,U7),1)) ->  | AN7: =IF(U7="",1,IF(V7>1,AK7+V7-1,AK7*V7)*AE7*AB7*Y7*AH7) -> 1 | AO7: =IF(V7="",1,IF(W7>1,AL7+W7-1,AL7*W7)*AF7*AC7*Z7*AH7) -> 1 | AP7: =IF(W7="",1,IF(X7>1,AM7+X7-1,AM7*X7)*AG7*AD7*AA7*AJ7) -> 1 | AQ7: =IF(U7="",1,V7*AE7*AB7*Y7*AH7) -> 1 | AR7: =IF(V7="",1,W7*AF7*AC7*Z7*AI7) -> 1 | AS7: =IF(W7="",1,X7*AG7*AD7*AA7*AJ7) -> 1 | AT7: 1 | AV7: =IF($C7="","",INDEX(BG$5:BG$15,MATCH($C7,$BF$5:$BF$15,0))*AN7) ->  | AW7: =IF($C7="","",INDEX(BH$5:BH$15,MATCH($C7,$BF$5:$BF$15,0))*AN7) ->  | AX7: =IF($C7="","",INDEX(BI$5:BI$15,MATCH($C7,$BF$5:$BF$15,0))*AN7) ->  | AY7: =IF($C7="","",INDEX(BJ$5:BJ$15,MATCH($C7,$BF$5:$BF$15,0))*AO7) ->  | AZ7: =IF($C7="","",INDEX(BK$5:BK$15,MATCH($C7,$BF$5:$BF$15,0))*AO7) ->  | BA7: =IF($C7="","",INDEX(BL$5:BL$15,MATCH($C7,$BF$5:$BF$15,0))*AO7) ->  | BB7: =IF(C7="","",INDEX(BO$5:BO$15,MATCH($C7,$BF$5:$BF$15,0))*AP7) ->  | BC7: =IF(C7="","",INDEX(BR$5:BR$15,MATCH($C7,$BF$5:$BF$15,0))*AP7) ->  | BD7: =IF(D7="","",INDEX(BS$5:BS$15,MATCH($C7,$BF$5:$BF$15,0))) ->  | BF7: Muratura in pietre a spacco con buona tessitura | BG7: 2.6 | BH7: 3.8 | BI7: 3.2 | BJ7: 0.056 | BK7: 0.074 | BL7: 0.065 | BM7: 1500 | BN7: 1980 | BO7: 1740 | BP7: 500 | BQ7: 660 | BR7: 580 | BS7: 21 | BT7: 1.3 | BU7: 1.3 | BV7: 1 | BW7: 1 | BX7: 1 | BY7: 1.1 | BZ7: 1 | CA7: 0.8 | CB7: 0.8 | CC7: 1.5 | CD7: 1.5 | CE7: 1.3
B8: =IF(C8="","","MUR2") ->  | V8: =IF(U8="","",IF(O8="SI",INDEX($BT$5:$BT$15,U8),1)) ->  | W8: =IF(U8="","",IF(O8="SI",INDEX($BT$5:$BT$15,U8),1)) ->  | X8: =IF(U8="","",IF(O8="SI",INDEX($BU$5:$BU$15,U8),1)) ->  | Y8: =IF(U8="","",IF(P8="SI",INDEX($BV$5:$BV$15,U8),1)) ->  | Z8: =IF(U8="","",IF(P8="SI",INDEX($BW$5:$BW$15,U8),1)) ->  | AA8: =IF(U8="","",IF(P8="SI",INDEX($BX$5:$BX$15,U8),1)) ->  | AB8: =IF(U8="","",IF(Q8="SI",INDEX($BY$5:$BY$15,U8),1)) ->  | AC8: =IF(U8="","",IF(Q8="SI",INDEX($BY$5:$BY$15,U8),1)) ->  | AD8: =IF(U8="","",IF(Q8="SI",INDEX($BZ$5:$BZ$15,U8),1)) ->  | AE8: =IF(U8="","",IF(R8="SI",INDEX($CA$5:$CA$15,U8),1)) ->  | AF8: =IF(U8="","",IF(R8="SI",INDEX($CA$5:$CA$15,U8),1)) ->  | AG8: =IF(U8="","",IF(R8="SI",INDEX($CB$5:$CB$15,U8),1)) ->  | AH8: =IF(U8="","",IF(T8="SI",INDEX($CE$5:$CE$15,U8),1)) ->  | AI8: =IF(U8="","",IF(T8="SI",INDEX($CE$5:$CE$15,U8),1)) ->  | AJ8: =IF(X8="","",1) ->  | AK8: =IF(U8="","",IF(S8="SI",INDEX($CC$5:$CC$15,U8),1)) ->  | AL8: =IF(U8="","",IF(S8="SI",INDEX($CC$5:$CC$15,U8),1)) ->  | AM8: =IF(U8="","",IF(S8="SI",INDEX($CD$5:$CD$15,U8),1)) ->  | AN8: 1 | AO8: 1 | AP8: 1 | AQ8: 1 | AR8: 1 | AS8: 1 | AT8: 1 | BD8: =IF(D8="","",INDEX(BS$5:BS$15,MATCH($C8,$BF$5:$BF$15,0))) ->  | BF8: Muratura a conci di pietra tenera (tufo, calcarenite, ecc.) | BG8: 1.4 | BH8: 2.4 | BI8: 1.9 | BJ8: 0.028 | BK8: 0.042 | BL8: 0.035 | BM8: 900 | BN8: 1260 | BO8: 1080 | BP8: 300 | BQ8: 420 | BR8: 360 | BS8: 16 | BT8: 1.5 | BU8: 1.5 | BV8: 1.5 | BW8: 1.25 | BX8: 1.5 | BY8: 1 | BZ8: 1 | CA8: 0.9 | CB8: 0.9 | CC8: 1.7 | CD8: 1.7 | CE8: 1.5
E9: >=3 | J9: =IF($C9="","",IF(OR(D9="LC1",D9="LC2"),IF(D9="LC1",AV9,AX9),IF(D9="LC3",IF(F9="",AX9,IF(E9=">=3",F9,IF(E9=2,IF(F9<AV9,F9,IF(F9>AW9,AW9,AX9)),IF(E9=1,IF(F9<AV9,F9,AX9)))))))/(IF(D9="LC1",1.35,IF(D9="LC2",1.2,1)))) ->  | AN9: 1 | AO9: 1 | AP9: 1 | AQ9: 1 | AR9: 1 | AS9: 1 | AT9: 1 | BF9: Muratura a blocchi lapidei squadrati | BG9: 6 | BH9: 8 | BI9: 7 | BJ9: 0.09 | BK9: 0.12 | BL9: 0.105 | BM9: 2400 | BN9: 3200 | BO9: 2800 | BP9: 780 | BQ9: 940 | BR9: 860 | BS9: 22 | BT9: 1.2 | BU9: 1.2 | BV9: 1.2 | BW9: 1.1 | BX9: 1.2 | BY9: 1 | BZ9: 1 | CA9: 0.7 | CB9: 0.7 | CC9: 1.2 | CD9: 1.2 | CE9: 1.2
E10: >=3 | AN10: 1 | AO10: 1 | AP10: 1 | AQ10: 1 | AR10: 1 | AS10: 1 | AT10: 1 | BF10: Muratura in mattoni pieni e malta di calce | BG10: 2.4 | BH10: 4 | BI10: 3.2 | BJ10: 0.06 | BK10: 0.092 | BL10: 0.076 | BM10: 1200 | BN10: 1800 | BO10: 1500 | BP10: 400 | BQ10: 600 | BR10: 500 | BS10: 18 | BT10: 1.5 | BU10: 1.5 | BV10: 1.5 | BW10: 1.25 | BX10: 1.5 | BY10: 1 | BZ10: 1 | CA10: 0.7 | CB10: 0.7 | CC10: 1.5 | CD10: 1.5 | CE10: 1.3
B11: =IF(C11="","","MUR6") ->  | E11: >=3 | AN11: 1 | AO11: 1 | AP11: 1 | AQ11: 1 | AR11: 1 | AS11: 1 | AT11: 1 | BF11: Muratura in mattoni semipieni con malta cementizia (es.: doppio UNI foratura ≤ 40%) | BG11: 5 | BH11: 8 | BI11: 6.5 | BJ11: 0.24 | BK11: 0.32 | BL11: 0.28 | BM11: 3500 | BN11: 5600 | BO11: 4550 | BP11: 875 | BQ11: 1400 | BR11: 1137.5 | BS11: 15 | BT11: 1 | BU11: 1 | BV11: 1 | BW11: 1 | BX11: 1 | BY11: 1 | BZ11: 1 | CA11: 1 | CB11: 1 | CC11: 1 | CD11: 1 | CE11: 1
B12: =IF(C12="","","MUR7") ->  | E12: >=3 | AN12: 1 | AO12: 1 | AP12: 1 | AQ12: 1 | AR12: 1 | AS12: 1 | AT12: 1 | BF12: Muratura in blocchi laterizi semipieni (perc. foratura < 45%) | BG12: 4 | BH12: 6 | BI12: 5 | BJ12: 0.3 | BK12: 0.4 | BL12: 0.35 | BM12: 3600 | BN12: 5400 | BO12: 4500 | BP12: 1080 | BQ12: 1620 | BR12: 1350 | BS12: 12 | BT12: 1 | BU12: 1 | BV12: 1 | BW12: 1 | BX12: 1 | BY12: 1 | BZ12: 1 | CA12: 1 | CB12: 1 | CC12: 1 | CD12: 1 | CE12: 1
B13: =IF(C13="","","MUR8") ->  | E13: >=3 | AN13: 1 | AO13: 1 | AP13: 1 | AQ13: 1 | AR13: 1 | AS13: 1 | AT13: 1 | BF13: Muratura in blocchi laterizi semipieni, con giunti verticali a secco (perc. foratura < 45%) | BG13: 3 | BH13: 4 | BI13: 3.5 | BJ13: 0.1 | BK13: 0.13 | BL13: 0.115 | BM13: 2700 | BN13: 3600 | BO13: 3150 | BP13: 810 | BQ13: 1080 | BR13: 945 | BS13: 11 | BT13: 1 | BU13: 1 | BV13: 1 | BW13: 1 | BX13: 1 | BY13: 1 | BZ13: 1 | CA13: 1 | CB13: 1 | CC13: 1 | CD13: 1 | CE13: 1
B14: =IF(C14="","","MUR9") ->  | E14: >=3 | AN14: 1 | AO14: 1 | AP14: 1 | AQ14: 1 | AR14: 1 | AS14: 1 | AT14: 1 | BF14: Muratura in blocchi di calcestruzzo o argilla espansa (perc. foratura tra 45% e 65%) | BG14: 1..5 | BH14: 2 | BI14: 2 | BJ14: 0.095 | BK14: 0.125 | BL14: 0.11 | BM14: 1200 | BN14: 1600 | BO14: 1400 | BP14: 300 | BQ14: 400 | BR14: 350 | BS14: 12 | BT14: 1 | BU14: 1 | BV14: 1 | BW14: 1 | BX14: 1 | BY14: 1 | BZ14: 1 | CA14: 1 | CB14: 1 | CC14: 1 | CD14: 1 | CE14: 1
B15: =IF(C15="","","MUR10") ->  | E15: >=3 | AN15: 1 | AO15: 1 | AP15: 1 | AQ15: 1 | AR15: 1 | AS15: 1 | AT15: 1 | BF15: Muratura in blocchi di calcestruzzo semipieni (foratura < 45%) | BG15: 3 | BH15: 4.4 | BI15: 3.7 | BJ15: 0.18 | BK15: 0.24 | BL15: 0.21 | BM15: 2400 | BN15: 3520 | BO15: 2960 | BP15: 600 | BQ15: 880 | BR15: 740 | BS15: 14 | BT15: 1 | BU15: 1 | BV15: 1 | BW15: 1 | BX15: 1 | BY15: 1 | BZ15: 1 | CA15: 1 | CB15: 1 | CC15: 1 | CD15: 1 | CE15: 1
B18: DEFINIZIONE NUOVI MATERIALI
B19: ACCIAO RINFORZO CAM
B20: Capacità sigillo | C20: Tipo Comportamento | D20: ftk | E20: fyk | F20: fyd | G20: Ea | H20: A80 | I20: eud | J20: gM0 | K20: b | L20: t | M20: Disposizione nastro | P20: ftd
B21: 0.7 | C21: Elasto-plastico incrudente | D21: Mpa | E21: Mpa | F21: Mpa | G21: Mpa | K21: mm | L21: mm | P21: Mpa
B22: Nastro Inox C1000 | D22: =INDEX($AA$31:$AA$34,Y30) -> 1000 | E22: =INDEX($AB$31:$AB$34,Y30) -> 650 | F22: =INDEX($AE$31:$AE$34,Y30) -> 560 | G22: =IF(B22="","",200000) -> 200000 | H22: =INDEX($AC$31:$AC$34,Y30) -> 0.08 | I22: =INDEX($AD$31:$AD$34,Y30) -> 0.0028 | J22: 1.1 | K22: 19 | L22: =IF(D22<600,1,0.9) -> 0.9 | M22: Nastro orizzontale diffuso | P22: =INDEX($AF$31:$AF$34,Y30) -> 560
B23: Nastro Inox 301 | D23: =INDEX($AA$31:$AA$34,Y31) -> 650 | E23: =INDEX($AB$31:$AB$34,Y31) -> 350 | F23: =INDEX($AE$31:$AE$34,Y31) -> 318.1818182 | G23: =IF(B23="","",200000) -> 200000 | H23: =INDEX($AC$31:$AC$34,Y31) -> 0.35 | I23: =INDEX($AD$31:$AD$34,Y31) -> 0.05477818182 | J23: 1.1 | K23: 19 | L23: =IF(D23<600,1,0.9) -> 0.9 | M23: Nastro verticale diffuso | P23: =INDEX($AF$31:$AF$34,Y31) -> 364
B24: Nastro Inox 301 | D24: =INDEX($AA$31:$AA$34,Y32) -> 650 | E24: =INDEX($AB$31:$AB$34,Y32) -> 350 | F24: =INDEX($AE$31:$AE$34,Y32) -> 318.1818182 | G24: =IF(B24="","",200000) -> 200000 | H24: =INDEX($AC$31:$AC$34,Y32) -> 0.35 | I24: =INDEX($AD$31:$AD$34,Y32) -> 0.05477818182 | J24: 1.1 | K24: 19 | L24: =IF(D24<600,1,0.9) -> 0.9 | M24: Nastro verticale di spigolo | P24: =INDEX($AF$31:$AF$34,Y32) -> 364
B27: CRITERI RINFORZO CAM
B28: Calcolo Aumento Resistenza fmcd per confinamento | D28: Calcolo Aumento Duttilità emcu per confinamento | J28: Considerare effetto diatono per duttilità elevata
B29: SI | D29: SI | J29: SI | AD29: =$B$21 -> 0.7
X30: H | Y30: =MATCH(B22,$Z$31:$Z$34,0) -> 3 | Z30: TIPO | AA30: ftk | AB30: fyk | AC30: A80mm | AD30: Asigillo | AE30: fyd | AF30: ftd | AG30: eyel
X31: V | Y31: =MATCH(B23,$Z$31:$Z$34,0) -> 4 | Z31: Nastro Inox AISI 304 | AA31: 540 | AB31: 220 | AC31: 0.45 | AD31: =AG31+(AC31-AB31/200000)/(AA31-AB31)*(AF31-AE31) -> 0.144648 | AE31: =MIN(AA31*$AD$29/1.25,AB31/1.1) -> 200 | AF31: =$AD$29*AA31/1.25 -> 302.4 | AG31: =AE31/200000 -> 0.001 | AH31: =$AD$29*AA31/1.25 -> 302.4
X32: SP | Y32: =MATCH(B24,Z31:Z34,0) -> 4 | Z32: Nastro Inox C850 | AA32: 850 | AB32: 550 | AC32: 0.25 | AD32: 0.00238 | AE32: =MIN(AA32*$AD$29/1.25,AB32/1.1) -> 476 | AF32: =$AD$29*AA32/1.25 -> 476 | AG32: =AE32/200000 -> 0.00238 | AH32: =$AD$29*AA32/1.25 -> 476
Z33: Nastro Inox C1000 | AA33: 1000 | AB33: 650 | AC33: 0.08 | AD33: 0.0028 | AE33: =MIN(AA33*$AD$29/1.25,AB33/1.1) -> 560 | AF33: 560 | AG33: =AE33/200000 -> 0.0028 | AH33: 560
Z34: Nastro Inox 301 | AA34: 650 | AB34: 350 | AC34: 0.35 | AD34: =AG34+(AC34-AB34/200000)/(AA34-AB34)*(AF34-AE34) -> 0.05477818182 | AE34: =MIN(AA34*$AD$29/1.25,AB34/1.1) -> 318.1818182 | AF34: 364 | AG34: =AE34/200000 -> 0.001590909091 | AH34: 364

Sheet 1- MURATURA NEL PIANO
B1: OTTOBRE 2015 | L1: 1 | M1: fm | N1: t | O1: E | P1: G | Q1: w | R1: fvk,lim/fvdlim | T1: gm
K2: ='0-MATERIALI'!U6 -> 4 | L2: ='0-MATERIALI'!B6 -> MUR1 | M2: =IF(L2="","",'0-MATERIALI'!J6*'0-MATERIALI'!AQ6/'0-MATERIALI'!AN6) -> 1.9 | N2: =IF(L2="","",'0-MATERIALI'!K6*'0-MATERIALI'!AR6/'0-MATERIALI'!AO6) -> 0.035 | O2: =IF(L2="","",'0-MATERIALI'!L6*'0-MATERIALI'!AS6/'0-MATERIALI'!AP6) -> 1080 | P2: =IF(L2="","",'0-MATERIALI'!M6*'0-MATERIALI'!AS6/'0-MATERIALI'!AP6) -> 360 | Q2: =IF(M2="","",'0-MATERIALI'!N6) -> 16 | R2: =IF(M2="","",IF(M2<=4,IF(S2=1,MIN(2.2,1.5*M2),MIN(1.5,M2)),IF(S2=1,MIN(2.2,0.5*M2),MIN(1.5,0.35*M2)))) -> 2.2 | S2: ='0-MATERIALI'!U2 -> 1 | T2: Analisi Pushover | U2: 1
K3: ='0-MATERIALI'!U7 ->  | L3: ='0-MATERIALI'!B7 ->  | M3: =IF(L3="","",'0-MATERIALI'!J7*'0-MATERIALI'!AQ7/'0-MATERIALI'!AN7) ->  | N3: =IF(L3="","",'0-MATERIALI'!K7*'0-MATERIALI'!AR7/'0-MATERIALI'!AO7) ->  | O3: =IF(L3="","",'0-MATERIALI'!L7*'0-MATERIALI'!AS7/'0-MATERIALI'!AP7) ->  | P3: =IF(L3="","",'0-MATERIALI'!M7*'0-MATERIALI'!AS7/'0-MATERIALI'!AP7) ->  | Q3: =IF(M3="","",'0-MATERIALI'!N7) ->  | R3: =IF(M3="","",IF(M3<=4,IF(S3=1,MIN(2.2,1.5*M3),MIN(1.5,M3)),IF(S3=1,MIN(2.2,0.5*M3),MIN(1.5,0.35*M3)))) ->  | T3: Analisi Spettro e Fattore q | U3: 2
B4: CARATTERISTICHE DEI MATERIALI | K4: ='0-MATERIALI'!U8 ->  | L4: ='0-MATERIALI'!B8 ->  | M4: =IF(L4="","",'0-MATERIALI'!J8*'0-MATERIALI'!AQ8/'0-MATERIALI'!AN8) ->  | N4: =IF(L4="","",'0-MATERIALI'!K8*'0-MATERIALI'!AR8/'0-MATERIALI'!AO8) ->  | O4: =IF(L4="","",'0-MATERIALI'!L8*'0-MATERIALI'!AS8/'0-MATERIALI'!AP8) ->  | P4: =IF(L4="","",'0-MATERIALI'!M8*'0-MATERIALI'!AS8/'0-MATERIALI'!AP8) ->  | Q4: =IF(M4="","",'0-MATERIALI'!N8) -> 
K5: ='0-MATERIALI'!U9 ->  | L5: ='0-MATERIALI'!B9 ->  | M5: =IF(L5="","",'0-MATERIALI'!J9*'0-MATERIALI'!AQ9/'0-MATERIALI'!AN9) ->  | N5: =IF(L5="","",'0-MATERIALI'!K9*'0-MATERIALI'!AR9/'0-MATERIALI'!AO9) ->  | O5: =IF(L5="","",'0-MATERIALI'!L9*'0-MATERIALI'!AS9/'0-MATERIALI'!AP9) ->  | P5: =IF(L5="","",'0-MATERIALI'!M9*'0-MATERIALI'!AS9/'0-MATERIALI'!AP9) ->  | Q5: =IF(M5="","",'0-MATERIALI'!N9) -> 
B6: MURATURA | K6: ='0-MATERIALI'!U10 ->  | L6: ='0-MATERIALI'!B10 ->  | M6: =IF(L6="","",'0-MATERIALI'!J10*'0-MATERIALI'!AQ10/'0-MATERIALI'!AN10) ->  | N6: =IF(L6="","",'0-MATERIALI'!K10*'0-MATERIALI'!AR10/'0-MATERIALI'!AO10) ->  | O6: =IF(L6="","",'0-MATERIALI'!L10*'0-MATERIALI'!AS10/'0-MATERIALI'!AP10) ->  | P6: =IF(L6="","",'0-MATERIALI'!M10*'0-MATERIALI'!AS10/'0-MATERIALI'!AP10) ->  | Q6: =IF(M6="","",'0-MATERIALI'!N10) -> 
B7: fm | C7: =INDEX($M$2:$M$11,$L$1) -> 1.9 | D7: Mpa | E7: resistenza media a compressione | K7: ='0-MATERIALI'!U11 ->  | L7: ='0-MATERIALI'!B11 ->  | M7: =IF(L7="","",'0-MATERIALI'!J11*'0-MATERIALI'!AQ11/'0-MATERIALI'!AN11) ->  | N7: =IF(L7="","",'0-MATERIALI'!K11*'0-MATERIALI'!AR11/'0-MATERIALI'!AO11) ->  | O7: =IF(L7="","",'0-MATERIALI'!L11*'0-MATERIALI'!AS11/'0-MATERIALI'!AP11) ->  | P7: =IF(L7="","",'0-MATERIALI'!M11*'0-MATERIALI'!AS11/'0-MATERIALI'!AP11) ->  | Q7: =IF(M7="","",'0-MATERIALI'!N11) -> 
B8: fmd | C8: =C7/C12 -> 1.9 | D8: Mpa | E8: resistenza di calcolo a compressione verticale | K8: ='0-MATERIALI'!U12 ->  | L8: ='0-MATERIALI'!B12 ->  | M8: =IF(L8="","",'0-MATERIALI'!J12*'0-MATERIALI'!AQ12/'0-MATERIALI'!AN12) ->  | N8: =IF(L8="","",'0-MATERIALI'!K12*'0-MATERIALI'!AR12/'0-MATERIALI'!AO12) ->  | O8: =IF(L8="","",'0-MATERIALI'!L12*'0-MATERIALI'!AS12/'0-MATERIALI'!AP12) ->  | P8: =IF(L8="","",'0-MATERIALI'!M12*'0-MATERIALI'!AS12/'0-MATERIALI'!AP12) ->  | Q8: =IF(M8="","",'0-MATERIALI'!N12) -> 
B9: fhmd | C9: =IF(INDEX(K2:K11,L1)<=4,0.75,0.25)*C8 -> 1.425 | D9: Mpa | E9: resistenza di calcolo a compressione orizzontale | K9: ='0-MATERIALI'!U13 ->  | L9: ='0-MATERIALI'!B13 ->  | M9: =IF(L9="","",'0-MATERIALI'!J13*'0-MATERIALI'!AQ13/'0-MATERIALI'!AN13) ->  | N9: =IF(L9="","",'0-MATERIALI'!K13*'0-MATERIALI'!AR13/'0-MATERIALI'!AO13) ->  | O9: =IF(L9="","",'0-MATERIALI'!L13*'0-MATERIALI'!AS13/'0-MATERIALI'!AP13) ->  | P9: =IF(L9="","",'0-MATERIALI'!M13*'0-MATERIALI'!AS13/'0-MATERIALI'!AP13) ->  | Q9: =IF(M9="","",'0-MATERIALI'!N13) -> 
B10: fvko | C10: =IF(S2=1,1,IF('0-MATERIALI'!AA2=1,0.7,1))*INDEX($N$2:$N$11,$L$1) -> 0.035 | D10: Mpa | E10: resistenza caratteristica a taglio (to/FC) | K10: ='0-MATERIALI'!U14 ->  | L10: ='0-MATERIALI'!B14 ->  | M10: =IF(L10="","",'0-MATERIALI'!J14*'0-MATERIALI'!AQ14/'0-MATERIALI'!AN14) ->  | N10: =IF(L10="","",'0-MATERIALI'!K14*'0-MATERIALI'!AR14/'0-MATERIALI'!AO14) ->  | O10: =IF(L10="","",'0-MATERIALI'!L14*'0-MATERIALI'!AS14/'0-MATERIALI'!AP14) ->  | P10: =IF(L10="","",'0-MATERIALI'!M14*'0-MATERIALI'!AS14/'0-MATERIALI'!AP14) ->  | Q10: =IF(M10="","",'0-MATERIALI'!N14) -> 
B11: emu | C11: 0.0035 | E11: deformazione ultima a compressione | K11: ='0-MATERIALI'!U15 ->  | L11: ='0-MATERIALI'!B15 ->  | M11: =IF(L11="","",'0-MATERIALI'!J15*'0-MATERIALI'!AQ15/'0-MATERIALI'!AN15) ->  | N11: =IF(L11="","",'0-MATERIALI'!K15*'0-MATERIALI'!AR15/'0-MATERIALI'!AO15) ->  | O11: =IF(L11="","",'0-MATERIALI'!L15*'0-MATERIALI'!AS15/'0-MATERIALI'!AP15) ->  | P11: =IF(L11="","",'0-MATERIALI'!M15*'0-MATERIALI'!AS15/'0-MATERIALI'!AP15) ->  | Q11: =IF(M11="","",'0-MATERIALI'!N15) -> 
B12: gM | C12: =INDEX($U$2:$U$3,$S$2) -> 1 | E12: coefficiente di sicurezza materiale
B13: w | C13: =INDEX($Q$2:$Q$11,$L$1)*100 -> 1600 | D13: Kg/m3 | E13: densità di massa della muratura | L13: k= | M13: =U25 -> 0.5026455026 | O13: A | P13: =2/0.002 -> 1000
B14: E | C14: =INDEX($O$2:$O$11,$L$1) -> 1080 | D14: Mpa | E14: modulo normale elastico (si può assumere pari a 1000 x fm) | L14: elim= | M14: =C18*M13/2*(1/2-M13/3)/(1-M13/2) -> 385.0211266 | N14: mm | O14: B | P14: =1/(2*0.002) -> 250
B15: fvk,lim | C15: =INDEX($R$2:$R$11,$L$1) -> 2.2 | D15: Mpa | E15: resistenza massima a taglio da calcolo | L15: N1= | M15: =C8*C19*C18*(1-M13/2)/1000 -> 2208.410714 | N15: KN
L16: Nrd,u= | M16: =C8*C18*C19/1000 -> 2949.75 | N16: KN
B17: GEOMETRIA PANNELLO MURARIO | L17: e | M17: 1.063715398 | N17: m
B18: L | C18: 3450 | D18: mm | E18: larghezza sezione | L18: Msd= | M18: =MIN(M17*C25,ABS(R30)) -> 67.27999894 | N18: KNm
B19: t | C19: 450 | D19: mm | E19: profondità sezione | L19: e1= | M19: =M18/Q30 -> 0.9455247984 | N19: mm
B20: H | C20: 3100 | D20: mm | E20: altezza pannello | L20: d= | M20: =MIN(MAX(IF(M19=0,C18,3*(C18/2-ABS(M19)*1000)),C27),C18) -> 2338.425605 | N20: mm
B21: Am | C21: =C18*C19 -> 1552500 | D21: mm2 | E21: Area sezione muratura
B23: ROTTURA A PRESSOFLESSIONE MURATURA (Calcolo elastico perfettamente plastico)
L24: Tipo | M24: x | N24: xel | O24: fmmin | P24: N | Q24: Mu | R24: a | S24: b | T24: c | U24: Kel | V24: so
B25: N0 | C25: 63.25 | D25: KN | E25: =CONCATENATE("Sforzo normale agente sulla parete < Nmax= ",INT(C18*C19*C8/1000),"KN") -> Sforzo normale agente sulla parete < Nmax= 2949KN | L25: 1 | M25: =IF(V25*C18/(C26*(1-C26/(2*C14*C11)))<=C18,V25*C18/(C26*(1-C26/(2*C14*C11))),C18+10) -> 98.80974521 | N25: =M25*U25 -> 49.66627405 | P25: =C26*C19*(M25-N25/2)/1000 -> 63.25 | Q25: =(C26*C19/2*(M25-N25)*(C18-M25+N25)-C26*C19*N25/2*(M25-2*N25/3-C18/2))/1000000 -> 106.6788622 | U25: =C26/C14/C11 -> 0.5026455026 | V25: =C25*1000/(C18*C19) -> 0.04074074074
B26: fd | C26: =C8 -> 1.9 | D26: Mpa | E26: Tensione di calcolo a compressione della muratura | L26: 2 | M26: =IF(S26^2-4*R26*T26>=0,(-S26-SQRT(S26^2-4*R26*T26))/(2*R26),C18) -> 1870.604474 | N26: =M26*U26 -> 940.2509263 | O26: =MIN(MAX(C26/N26*(M26-C18),0),C26) -> 0 | P26: =(C26*C18*C19-(C26-O26)*C19/2*(C18-M26+N26))/1000 -> 1872.601142 | Q26: =(C26-O26)*C19/2*(C18-M26+N26)*(C18/2-(C18-M26+N26)/3)/1000000 -> 953.4036808 | R26: =C26*C19/2*(1-U26)^2 -> 105.7470396 | S26: =(V25*C18*C19*U26-C26*C18*C19) -> -2917957.672 | T26: =C26*C19*C18^2/2 -> 5088318750 | U26: =C26/C14/C11 -> 0.5026455026 | V26: =C25*1000/(C18*C19) -> 0.04074074074
B27: x | C27: =IF(C25<=0,0,IF(M29<=C18,M29,M30)) -> 91.38286894 | D27: mm | E27: posizione asse neutro rispetto al lembo compresso
B28: Mu | C28: =IF(C25<=0,0,IF(M18=0,1,SIGN(M18))*IF(M29<=C18,R29,R30)) -> 106.7019782 | D28: KNm | E28: Momento ultimo a pressoflessione | M28: x | N28: x2 | O28: x3 | P28: e3 | Q28: N | R28: M | S28: xmax
B29: NRes | C29: =IF(C25<=0,0,IF(M29<=C18,Q29,Q30)) -> 63.25 | D29: KN | E29: Sforzo normale resistente | L29: 1 | M29: =C25*1000/(C8*C19*($P$13*0.002^2/C11*(1/2-$P$14/3*0.002)+(1-0.002/C11))) -> 91.38286894 | N29: =M29/C11*0.002 -> 52.21878225 | O29: 0 | P29: 0 | Q29: =IF(M29<=S29,($P$13*C8*C19*0.002*N29*(1/2-$P$14/3*0.002)+C8*C19*(M29-N29))/1000,0) -> 63.25 | R29: =IF(M29<=S29,($P$13*C8*C19*0.002*N29^2*(1/3-$P$14/4*0.002)+C8*C19/2*(M29^2-N29^2)-1000*Q29*(M29-C18/2))/1000000,0) -> 106.7019782 | S29: =C18 -> 3450 | T29: asse neutro interno alla sezione
B30: ROTTURA A TAGLIO PER SCORRIMENTO | L30: 2 | M30: 102.8057276 | N30: =M30/C11*0.002 -> 58.74613003 | O30: =MAX(0,M30-S29) -> 0 | P30: =0.002/N30*O30 -> 0 | Q30: =IF(M30<=S30,($P$13*C8*C19*0.002*N30*(1/2-$P$14/3*0.002)+C8*C19*(M30-N30)-$P$13*C8*C19*P30*O30*(1/2-$P$14*P30/3))/1000,M16) -> 71.15625 | R30: =IF(M30<=S30,($P$13*C8*C19*0.002*N30^2*(1/3-$P$14/4*0.002)+C8*C19/2*(M30^2-N30^2)-$P$13*C8*C19*P30*O30^2*(1/3-$P$14*P30/4)-1000*Q30*(M30-C18/2))/1000000,0) -> 119.7016248 | S30: =C18/(C11-0.002+0.00000000001)*C11 -> 8049.999946 | T30: asse neutro esterno alla sezione
R31: =R30/Q30 -> 1.682236273 | S31: =IF(C25<M16,Q30-C25,(R30/Q30-ABS(M17))*1000) -> 7.90625 | T31: funzione
B32: L' | C32: =M20 -> 2338.425605 | D32: mm | E32: zona compressa della muratura
B33: fvd | C33: =MIN(C15/C12,IF(C32>0,MAX(0,MIN(IF(S2=1,2.2,1.5),IF(S2=1,2,1.4)*C12*C8,C10/C12+MIN(C8,V25)*C18/C32*0.4/C12)),C10/C12)) -> 0.05904276711 | D33: Mpa | E33: tensione di calcolo a taglio
B34: Vt | C34: =IF(C25<=0,0,MAX(0,C32*C19*C33/1000)) -> 62.13020328 | D34: KN | E34: Taglio per rottura a scorrimento
B35: tu | C35: =C34/C18/C19*1000 -> 0.04001945461 | D35: Mpa | E35: Tensione di taglio per rottura a scorrimento
B37: ROTTURA A TAGLIO PER FESSURAZIONE DIAGONALE
B39: b/h | C39: =MIN(MAX(1,C20/C18),1.5) -> 1 | E39: Coefficiente adimensionale
B40: ftd | C40: =INDEX($N$2:$N$11,$L$1)*1.5/C12 -> 0.0525 | D40: Mpa | E40: resistenza a trazione per fessurazione diagonale
B41: Vt | C41: =IF(C25<=0,0,C18*C19/C39*C40*SQRT(1+MAX(0,MIN(C8,V25))/C40)/1000) -> 108.6210804 | D41: KN | E41: Taglio per rottura a fessurazione diagonale
B42: tu | C42: =C41/C18/C19*1000 -> 0.06996526916 | D42: Mpa | E42: tensione di taglio per fessurazione diagonale
B44: SOMMARIO RISULTATI
B46: Mu | C46: =C28 -> 106.7019782 | D46: KNm | E46: Momento ultimo a pressoflessione
B47: Tu | C47: =MIN(C34,C41,C28*2000/C20) -> 62.13020328 | D47: KN | E47: Taglio ultimo | G47: =IF(C46/C20*2>C34,"Rottura a taglio per fessurazione diagonale",IF(C46/C20*2>C41,"Rottura a taglio per scorrimento","Rottura a taglio per flessione")) -> Rottura a taglio per flessione
B48: fd | C48: =C26 -> 1.9 | D48: Mpa | E48: tensione di calcolo a compressione
B49: tu | C49: =MIN(C35,C42) -> 0.04001945461 | D49: Mpa | E49: tensione resistente a taglio

Sheet 2-CONFINAMENTO CAM NEL PIANO
B1: OTTOBRE 2015
B4: CARATTERISTICHE DEI MATERIALI
B6: ='0-MATERIALI'!B23:C23 -> Nastro Inox 301
B7: Ef | C7: 200000 | D7: Mpa | E7: Modulo elastico
B8: ftk | C8: ='0-MATERIALI'!D22 -> 1000 | D8: Mpa | E8: tensione di rottura nastro orizzontale
B9: fyk | C9: ='0-MATERIALI'!E22 -> 650 | D9: Mpa | E9: tensione di snervamento nastro orizzontale
B10: fyd | C10: ='0-MATERIALI'!F22 -> 560 | D10: Mpa | E10: tensione di calcolo nastro orizzontale
B11: fp | C11: 100 | D11: Mpa | E11: tensione di pretensionamento | L11: ='1- MURATURA NEL PIANO'!L1 -> 1 | M11: fm | N11: t | O11: E | P11: G | Q11: w | R11: Diatono
B12: er | C12: ='0-MATERIALI'!I22 -> 0.0028 | E12: deformazione ultima a rottura | L12: ='0-MATERIALI'!B6 -> MUR1 | M12: =IF($L12="","",'0-MATERIALI'!J6) -> 1.9 | N12: =IF($L12="","",'0-MATERIALI'!K6) -> 0.035 | O12: =IF($L12="","",'0-MATERIALI'!L6) -> 1080 | P12: =IF($L12="","",'0-MATERIALI'!M6) -> 360 | Q12: =IF($L12="","",'0-MATERIALI'!N6) -> 16 | R12: =IF($L12="","",'0-MATERIALI'!AT6/'0-MATERIALI'!AH6) -> 1.5
B13: gM2 | C13: 1.25 | E13: coefficiente parziale collegamento sigillo | L13: ='0-MATERIALI'!B7 ->  | M13: =IF($L13="","",'0-MATERIALI'!J7) ->  | N13: =IF($L13="","",'0-MATERIALI'!K7) ->  | O13: =IF($L13="","",'0-MATERIALI'!L7) ->  | P13: =IF($L13="","",'0-MATERIALI'!M7) ->  | Q13: =IF($L13="","",'0-MATERIALI'!N7) ->  | R13: =IF($L13="","",'0-MATERIALI'!AT7/'0-MATERIALI'!AH7) -> 
L14: ='0-MATERIALI'!B8 ->  | M14: =IF($L14="","",'0-MATERIALI'!J8) ->  | N14: =IF($L14="","",'0-MATERIALI'!K8) ->  | O14: =IF($L14="","",'0-MATERIALI'!L8) ->  | P14: =IF($L14="","",'0-MATERIALI'!M8) ->  | Q14: =IF($L14="","",'0-MATERIALI'!N8) ->  | R14: =IF($L14="","",'0-MATERIALI'!AT8/'0-MATERIALI'!AH8) ->  | S14: =IF($L14="","",'0-MATERIALI'!AT8) -> 
B15: =INDEX(L12:L21,L11) -> MUR1 | L15: ='0-MATERIALI'!B9 ->  | M15: =IF($L15="","",'0-MATERIALI'!J9) ->  | N15: =IF($L15="","",'0-MATERIALI'!K9) ->  | O15: =IF($L15="","",'0-MATERIALI'!L9) ->  | P15: =IF($L15="","",'0-MATERIALI'!M9) ->  | Q15: =IF($L15="","",'0-MATERIALI'!N9) ->  | R15: =IF($L15="","",'0-MATERIALI'!AT9/'0-MATERIALI'!AH9) ->  | S15: =IF($L15="","",'0-MATERIALI'!AT9) -> 
B16: fm | C16: =INDEX(M$12:M$21,$L$11) -> 1.9 | D16: Mpa | E16: ='1- MURATURA NEL PIANO'!E7 -> resistenza media a compressione | L16: ='0-MATERIALI'!B10 ->  | M16: =IF($L16="","",'0-MATERIALI'!J10) ->  | N16: =IF($L16="","",'0-MATERIALI'!K10) ->  | O16: =IF($L16="","",'0-MATERIALI'!L10) ->  | P16: =IF($L16="","",'0-MATERIALI'!M10) ->  | Q16: =IF($L16="","",'0-MATERIALI'!N10) ->  | R16: =IF($L16="","",'0-MATERIALI'!AT10/'0-MATERIALI'!AH10) ->  | S16: =IF($L16="","",'0-MATERIALI'!AT10) -> 
B17: fmd | C17: =C16/C21 -> 1.9 | D17: Mpa | E17: ='1- MURATURA NEL PIANO'!E8 -> resistenza di calcolo a compressione verticale | L17: ='0-MATERIALI'!B11 ->  | M17: =IF($L17="","",'0-MATERIALI'!J11) ->  | N17: =IF($L17="","",'0-MATERIALI'!K11) ->  | O17: =IF($L17="","",'0-MATERIALI'!L11) ->  | P17: =IF($L17="","",'0-MATERIALI'!M11) ->  | Q17: =IF($L17="","",'0-MATERIALI'!N11) ->  | R17: =IF($L17="","",'0-MATERIALI'!AT11/'0-MATERIALI'!AH11) ->  | S17: =IF($L17="","",'0-MATERIALI'!AT11) -> 
B18: fhmd | C18: ='1- MURATURA NEL PIANO'!C9 -> 1.425 | D18: Mpa | E18: ='1- MURATURA NEL PIANO'!E9 -> resistenza di calcolo a compressione orizzontale | L18: ='0-MATERIALI'!B12 ->  | M18: =IF($L18="","",'0-MATERIALI'!J12) ->  | N18: =IF($L18="","",'0-MATERIALI'!K12) ->  | O18: =IF($L18="","",'0-MATERIALI'!L12) ->  | P18: =IF($L18="","",'0-MATERIALI'!M12) ->  | Q18: =IF($L18="","",'0-MATERIALI'!N12) ->  | R18: =IF($L18="","",'0-MATERIALI'!AT12/'0-MATERIALI'!AH12) ->  | S18: =IF($L18="","",'0-MATERIALI'!AT12) -> 
B19: fvko | C19: ='1- MURATURA NEL PIANO'!C10 -> 0.035 | D19: Mpa | E19: ='1- MURATURA NEL PIANO'!E10 -> resistenza caratteristica a taglio (to/FC) | L19: ='0-MATERIALI'!B13 ->  | M19: =IF($L19="","",'0-MATERIALI'!J13) ->  | N19: =IF($L19="","",'0-MATERIALI'!K13) ->  | O19: =IF($L19="","",'0-MATERIALI'!L13) ->  | P19: =IF($L19="","",'0-MATERIALI'!M13) ->  | Q19: =IF($L19="","",'0-MATERIALI'!N13) ->  | R19: =IF($L19="","",'0-MATERIALI'!AT13/'0-MATERIALI'!AH13) ->  | S19: =IF($L19="","",'0-MATERIALI'!AT13) -> 
B20: emu | C20: ='1- MURATURA NEL PIANO'!C11 -> 0.0035 | E20: ='1- MURATURA NEL PIANO'!E11 -> deformazione ultima a compressione | L20: ='0-MATERIALI'!B14 ->  | M20: =IF($L20="","",'0-MATERIALI'!J14) ->  | N20: =IF($L20="","",'0-MATERIALI'!K14) ->  | O20: =IF($L20="","",'0-MATERIALI'!L14) ->  | P20: =IF($L20="","",'0-MATERIALI'!M14) ->  | Q20: =IF($L20="","",'0-MATERIALI'!N14) ->  | R20: =IF($L20="","",'0-MATERIALI'!AT14/'0-MATERIALI'!AH14) ->  | S20: =IF($L20="","",'0-MATERIALI'!AT14) -> 
B21: gM | C21: ='1- MURATURA NEL PIANO'!C12 -> 1 | E21: coefficiente di sicurezza materiale | L21: ='0-MATERIALI'!B15 ->  | M21: =IF($L21="","",'0-MATERIALI'!J15) ->  | N21: =IF($L21="","",'0-MATERIALI'!K15) ->  | O21: =IF($L21="","",'0-MATERIALI'!L15) ->  | P21: =IF($L21="","",'0-MATERIALI'!M15) ->  | Q21: =IF($L21="","",'0-MATERIALI'!N15) ->  | R21: =IF($L21="","",'0-MATERIALI'!AT15/'0-MATERIALI'!AH15) ->  | S21: =IF($L21="","",'0-MATERIALI'!AT15) -> 
B22: w | C22: =INDEX(Q$12:Q$21,$L$11)*100 -> 1600 | D22: Kg/m3 | E22: ='1- MURATURA NEL PIANO'!E13 -> densità di massa della muratura
B23: E | C23: =INDEX(O$12:O$21,$L$11) -> 1080 | D23: Mpa | E23: ='1- MURATURA NEL PIANO'!E14 -> modulo normale elastico (si può assumere pari a 1000 x fm)
B24: ='1- MURATURA NEL PIANO'!B15 -> fvk,lim | C24: ='1- MURATURA NEL PIANO'!C15 -> 2.2 | D24: ='1- MURATURA NEL PIANO'!D15 -> Mpa | E24: ='1- MURATURA NEL PIANO'!E15 -> resistenza massima a taglio da calcolo
B26: GEOMETRIA PANNELLO MURARIO
B27: L | C27: ='1- MURATURA NEL PIANO'!C18 -> 3450 | D27: mm | E27: larghezza sezione
B28: t | C28: ='1- MURATURA NEL PIANO'!C19 -> 450 | D28: mm | E28: profondità sezione
B29: b' | C29: =C44 -> 840 | D29: mm | E29: larghezza ridotta
B30: d' | C30: =C28-2*$C$31 -> 390 | D30: mm | E30: profondità ridotta
B31: rf | C31: 30 | D31: mm | E31: raggio curvatura spigoli (se quadrata/rettangolare >20mm)
B32: Ag | C32: =(C29+2*C31)*(C30+2*C31) -> 405000 | D32: mm2 | E32: Area singola sezione muratura rinforzata
B34: GEOMETRIA RINFORZO
B35: Modo | C35: Q | E35: (Q=Quinconce, N=Normale)
B36: no,nastri | C36: 3 | E36: numero di nastri orizzontali sovrapposti
B37: nv,nastri | C37: 1 | E37: numero di nastri verticali sovrapposti
B38: tfs | C38: ='0-MATERIALI'!L22 -> 0.9 | D38: mm | E38: spessore singolo nastro
B39: tfo | C39: =C38*C36 -> 2.7 | D39: mm | E39: spessore totale nastri orizzontali
B40: Fn | C40: =C38*C41*C10*C37 -> 9576 | D40: N | E40: forza pretensionamento per la striscia di nastri verticali sovrapposti
B41: bf | C41: ='0-MATERIALI'!K23 -> 19 | D41: mm | E41: larghezza striscia rinforzo
B42: pfh | C42: 500 | D42: mm | E42: passo orizzontale (nastri verticali) | H42: =CONCATENATE("(Consigliato ",C28,"<pfh<",MROUND(((2*C31+3*C28)+SQRT((-(2*C31+3*C28))^2-4*1*((C28-C31)^2+C31^2)))/(2*1),100),"mm)") -> (Consigliato 450<pfh<1300mm)
B43: pfv | C43: 250 | D43: mm | E43: passo verticale (nastri orizzontali) | H43: =CONCATENATE("(Consigliato pfv<",MROUND(2*MIN(C44+2*C31,C28),100),"mm)") -> (Consigliato pfv<900mm)
B44: p'fh | C44: =IF(OR(C42=0,C27<C42),C27,IF($C$35="Q",MIN(C27,2*Q55),MIN(C27,Q55))-2*C31) -> 840 | D44: mm | E44: passo orizzontale del rinforzo efficace
B45: p'fv | C45: =IF(C43=0,'1- MURATURA NEL PIANO'!C20,C43-C41) -> 231 | D45: mm | E45: passo verticale del rinforzo efficace
B46: rf | C46: =IF(OR(C43=0,C43=""),0,AVERAGE(V47:V48)) -> 0.001369802372 | E46: percentuale geometrica del rinforzo | P46: Confinamento | Q46: csx | R46: cdx | S46: passoh | T46: nb | U46: Ab | V46: ry | W46: KH
B47: A,ang | C47: 0 | D47: mmq | E47: Eventuali nastri verticali sullo spigolo | M47: eyel,sp | N47: =N49/C7 -> 0.00182 | P47: Fila1 | Q47: =$Q$54 -> 150 | R47: =IF(Q47=0,0,IF($C$35="Q",IF((Q52/2)>1,0,$Q$53)+$Q$54,$Q$54)) -> 150 | S47: =IF(OR(AND($C$35="Q",T47>2),AND($C$35="N",T47>1)),IF(AND($C$35="Q",Q47>0),IF($Q$52>2,2*Q53,0),Q53),0) -> 900 | T47: =IF(C35="Q",CEILING(Q52/2,1),Q52) -> 4 | U47: =2*C41*(C39+C37*N54*N52/C10) -> 122.0318182 | V47: =MIN(4*$C$39*$C$41/($C$28*$C$43),(4*$C$39*$C$41+2*T47*U47)/($C$27*$C$43)) -> 0.001369802372 | W47: =MAX(0,1-((S47-2*$C$31)^2*(T47-1)+($C$30)^2+(Q47-2*$C$31)^2+(R47-2*$C$31)^2)/(3*$C$27*$C$28)) -> 0.5093719807 | X47: =W47*V47 -> 0.0006977389471 | Y47: =AVERAGE(V47:V48) -> 0.001369802372 | Z47: =AVERAGE(W47:W48) -> 0.4485024155 | AA47: =Z47*Y47 -> 0.0006143596723 | AB47: =AVERAGE(X47:X48) -> 0.0006143596723
M48: fyd,n,sp | N48: ='0-MATERIALI'!F24 -> 318.1818182 | O48: Mpa | P48: Fila2 | Q48: =IF(C35="Q",IF(Q47<Q53,Q53+Q47,R47),Q47) -> 600 | R48: =IF(C35="Q",IF(R47<Q53,Q53+R47,Q47),R47) -> 600 | S48: =IF(OR(AND($C$35="Q",T48>2),AND($C$35="N",T48>1)),IF(AND($C$35="Q",Q48>0),IF($Q$52>2,2*Q53,0),Q53),0) -> 900 | T48: =IF(C35="Q",FLOOR(Q52/2,1),Q52) -> 4 | U48: =2*C41*(C39+C37*N54*N52/C10) -> 122.0318182 | V48: =MIN(4*$C$39*$C$41/($C$28*$C$43),(4*$C$39*$C$41+2*T48*U48)/($C$27*$C$43)) -> 0.001369802372 | W48: =MAX(0,1-((S48-2*$C$31)^2*(T48-1)+($C$30)^2+(Q48-2*$C$31)^2+(R48-2*$C$31)^2)/(3*$C$27*$C$28)) -> 0.3876328502 | X48: =W48*V48 -> 0.0005309803975
B49: COEFFICIENTE DI EFFICIENZA DEL RINFORZO | M49: fyu,n,sp | N49: =IF('0-MATERIALI'!C21="Elasto-plastico incrudente",'0-MATERIALI'!P24,N48) -> 364 | O49: Mpa
B50: Kv | C50: =IF(C36=0,0,(1-MIN(MAX(C45,0)/(2*MIN(C27,C28)),1))^2) -> 0.5525444444 | E50: coefficiente di efficienza verticale | M50: eyel,v | N50: =N52/C7 -> 0.001590909091
B51: K' | C51: =C22/1000 -> 1.6 | E51: coefficiente di incremento di resistenza | M51: fyd,uv | N51: =IF('0-MATERIALI'!C21="Elasto-plastico incrudente",'0-MATERIALI'!P23,N52) -> 364 | O51: Mpa
B52: Kh | C52: =IF(C36=0,0,AVERAGE(W47:W48)) -> 0.4485024155 | E52: coefficiente di efficienza orizzontale | M52: fyd,v | N52: ='0-MATERIALI'!F23 -> 318.1818182 | O52: Mpa | P52: n°vert | Q52: =IF(C42>C27,0,IF(OR(C37=0,C37="",C47>0),INT(C27/(C42+1))+1,INT((C27-2*150)/(0.9*C42)+1))) -> 8
B53: Keff | C53: =C50*C52 -> 0.247817518 | E53: coefficiente di efficienza efficace | M53: bf,v | N53: ='0-MATERIALI'!K23 -> 19 | O53: mm | P53: passo | Q53: =IF(Q52=0,C27,IF(OR(C37=0,C37="",C47>0),C42,IF(Q52=1,0,(C27-2*150)/(Q52-1)))) -> 450
M54: tn,v | N54: ='0-MATERIALI'!L23 -> 0.9 | O54: mm | P54: copriferro | Q54: =IF(Q52=0,0,IF(OR(C37=0,C37="",C47>0),(C27-(Q52-1)*Q53)/2,150)) -> 150
B55: RESISTENZA E DEFORMAZIONE ULTIMA DI CALCOLO MURATURA CONFINATA | M55: tn,v,tot | N55: =N54*C37 -> 0.9 | O55: mm | P55: passo medio | Q55: =Q53 -> 450 | R55: mm
B56: C,diatono | C56: =IF(AND('0-MATERIALI'!J29="SI",C61>1.1*C20),INDEX(R12:R21,L11),1) -> 1.5 | E56: coefficiente miglioramento CAM effetto diatono | M56: efu | N56: =MIN(0.12,IF(C47=0,'0-MATERIALI'!I23,MIN('0-MATERIALI'!I24,'0-MATERIALI'!I23))) -> 0.05477818182 | P56: yf | Q56: =IF(SUM(U60:U81)=0,C68,U59) -> 264.5801244 | R56: mm
B57: f1 | C57: =0.5*(C46*C10) -> 0.383544664 | D57: Mpa | E57: pressione di confinamento | M57: Nrdmax | N57: =C59*C27*C28/1000 -> 6008.035881 | O57: KN | P57: nf | Q57: =Q52 -> 8 | R57: numero posizioni verticali
B58: f1eff | C58: =C57*C53 -> 0.09504908668 | D58: Mpa | E58: pressione efficace di confinamento | M58: Nrdmin | N58: =-Q57*2*(C37*C38)*C41*N51/1000-C47*2*2*N48/1000 -> -99.5904 | O58: KN | U58: =SUM(U60:U81)/SUM(Q60:Q81) -> 1873.332813
B59: fmcd | C59: =C17*IF('0-MATERIALI'!B29="SI",C56*(1+C51*(C58/C17)^0.5),1) -> 3.86991039 | D59: Mpa | E59: resistenza di progetto della muratura confinata con effetto diatono | M59: b | N59: =C28 -> 450 | O59: mm | Q59: Fnastri | R59: fy | S59: ey | U59: =SUM(T60:T81)/SUM(S60:S81)/(N55*N53*9*2) -> 264.5801244 | V59: =0.8*C27 -> 2760
C60: fmcd / fmd= | D60: =C59/C17 -> 2.036794942 | M60: x | N60: 132.5949153 | O60: mm | P60: 1 | Q60: =2*$N$53*$N$55*R60 -> -5331.63198 | R60: =IF(S60<0,IF(S60>-$N$50,S60*$C$7,MAX(-$N$51,-$N$52+($N$51-$N$52)/($N$56-$N$50+0.0000001)*(S60+$N$50))),0) -> -155.8956719 | S60: =MIN(0,IF($Q$57>=P60,IF($N$60>0,-$N$65+($N$60-R84)/$N$60*$N$63,-$N$56/($N$60-MAX($R$84:$R$103))*($N$60-R84)),0)) -> -0.0007794783596 | T60: =MIN(0,S60*R84)*2*$N$53*$N$55 -> -3.998723985 | U60: =Q60*R84 -> -799744.797
B61: emu,c | C61: =C20+IF('0-MATERIALI'!D29="SI",0.015*SQRT(C58/C17),0) -> 0.00685496839 | E61: deformazione ultima a compressione muratura confinata | M61: x2 | N61: =IF(N64/N63*N60<N67,N67,IF(N63<N64,N60,N64/N63*N60)) -> 115.6447688 | O61: mm | P61: 2 | Q61: =2*$N$53*$N$55*R61 -> -11087.19523 | R61: =IF(S61<0,IF(S61>-$N$50,S61*$C$7,MAX(-$N$51,-$N$52+($N$51-$N$52)/($N$56-$N$50+0.0000001)*(S61+$N$50))),0) -> -324.1869949 | S61: =MIN(0,IF($Q$57>=P61,IF($N$60>0,-$N$65+($N$60-R85)/$N$60*$N$63,-$N$56/($N$60-MAX($R$84:$R$103))*($N$60-R85)),0)) -> -0.008561931554 | T61: =MIN(0,S61*R85)*2*$N$53*$N$55 -> -175.6908355 | U61: =Q61*R85 -> -6652317.136
B62: NRes | C62: =C59*C27*C28/1000 -> 6008.035881 | D62: KN | E62: resistenza massima a compressione centrata | M62: fmd | N62: =C59 -> 3.86991039 | O62: Mpa | P62: 3 | Q62: =2*$N$53*$N$55*R62 -> -11316.47827 | R62: -330.8911775 | S62: -0.01634438475 | T62: =MIN(0,S62*R86)*2*$N$53*$N$55 -> -586.9268563 | U62: =Q62*R86 -> -11882302.18
M63: emu | N63: =IF(N60<0,N56/(C27-N60)*N60,IF(OR(C47>0,C67>0),IF(C61/N60*(MAX(R84:R105)-N60)>N56,N56/(MAX(R84:R105)-N60)*N60,C61),C61)) -> 0.002293141605 | P63: 4 | Q63: -11545.76131 | R63: -337.59536 | S63: -0.02412683794 | T63: -1237.706786 | U63: -17318641.97
B64: ROTTURA A PRESSOFLESSIONE MURATURA (Calcolo elastico perfettamente plastico) | M64: em2 | N64: 0.002 | P64: 5 | Q64: -11775.04436 | R64: -344.2995426 | S64: -0.03190929114 | T64: -2128.030626 | U64: -22961336.49
B65: so | C65: =('1- MURATURA NEL PIANO'!C25*1000+C11*(C41*C38*2*Q57*C37+C47*4))/(C27*C28) -> 0.05836392915 | D65: Mpa | E65: Tensione verticale media (inclusa pretensione nastri verticali) | M65: epret | N65: =C11/209000 -> 0.0004784688995 | P65: 6 | Q65: -12004.3274 | R65: -351.0037251 | S65: -0.03969174433 | T65: -3257.898375 | U65: -28810385.76
B66: fmd | C66: =C59 -> 3.86991039 | D66: Mpa | E66: Tensione di calcolo a compressione della muratura | M66: em3 | N66: =N64/N61*N67 -> 0 | P66: 7 | Q66: -12233.61044 | R66: -357.7079076 | S66: -0.04747419752 | T66: -4627.310033 | U66: -34865789.76
B67: Ainoxm | C67: =IF(OR(C42=0,C42=""),0,2*C38*C37*C41*(MAX(0,INT(C27/C42)))/C27) -> 0.05947826087 | D67: mm2/mm | E67: densità rinforzo nastri verticali | M67: x3 | N67: =MAX(0,N60-C27) -> 0 | O67: mm | P67: 8 | Q67: -12448.8 | R67: -364 | S67: -0.05525665072 | T67: -6236.2656 | U67: -41081040
B68: x | C68: =IF(ABS(N72)<0.001,N60,0) -> 0 | D68: mm | E68: zona compressa della muratura | P68: 9 | Q68: 0 | R68: 0 | S68: 0 | T68: 0 | U68: 0
B69: Mu | C69: =IF(ABS(N72)>0.001,0,IF(N74=0,1,SIGN(N74))*N71) -> 0 | D69: KNm | E69: Momento ultimo a pressoflessione | M69: Nsd | N69: ='1- MURATURA NEL PIANO'!C25 -> 63.25 | O69: KN | P69: 10 | Q69: 0 | R69: 0 | S69: 0 | T69: 0 | U69: 0
M70: NRd | N70: =IF(N60>0,(1000*N62*N59*N64*N61*(1/2-250/3*N64)+N62*N59*(N60-N61)-1000*N62*N59*N66*N67*(1/2-250/3*N66)),0)/1000+SUM(Q60:Q81)/1000 -> 76.03561538 | O70: KN | P70: 11 | Q70: 0 | R70: 0 | S70: 0 | T70: 0 | U70: 0
B71: ROTTURA A TAGLIO PER SCORRIMENTO | M71: MRd | N71: =IF(N60>0,(1000*N62*N59*N64*N61^2*(1/3-250/4*N64)+N62*N59/2*(N60^2-N61^2)-1000*N62*N59*N66*N67^2*(1/3-250/4*N66)),0)/1000000+SUMPRODUCT(Q60:Q81,T84:T105)/1000000+N70*(C27/2-N60)/1000 -> 287.1846476 | O71: KNm | P71: 12 | Q71: 0 | R71: 0 | S71: 0 | T71: 0 | U71: 0
M72: funzione | N72: =IF(AND(N69>=N58,N69<=N57),N70-N69,(N75-N71/(N70+0.00000001))*1000) -> 12.78561538 | P72: 13 | Q72: 0 | R72: 0 | S72: 0 | T72: 0 | U72: 0
B73: d | C73: =IF(C68<=0,C27,IF(C69=0,0,IF(C47>0,R105,IF(C67>0,0.9/0.9*MAX(R84:R103),N76)))) -> 3450 | D73: mm | E73: distanza tra lembo compresso e baricentro teso | M73: Ncomp | N73: =(1000*N62*N59*N64*N61*(1/2-250/3*N64)+N62*N59*(N60-N61)-1000*N62*N59*N66*N67*(1/2-250/3*N66))/1000 -> 163.7784644 | O73: KN | P73: 14 | Q73: 0 | R73: 0 | S73: 0 | T73: 0 | U73: 0
B74: fvd,c | C74: =MAX(0,C19/C21*C56+0.4/C21*MIN(N57,MAX(0,'1- MURATURA NEL PIANO'!C25))*1000/((C73+0.000001)*C28)) -> 0.06879629629 | D74: Mpa | E74: tensione di calcolo a taglio | M74: Msd | N74: 67.28 | O74: KNm | P74: 15 | Q74: 0 | R74: 0 | S74: 0 | T74: 0 | U74: 0
B75: Vt,S | C75: =MAX('1- MURATURA NEL PIANO'!C34,IF(AND(C47=0,N55=0,C65<=0),0,MIN(0.3*C59*C28*C73,C74*C73*C28+0.6*2*C39*C41/(C43+0.00001)*C10*C73)/1000)) -> 582.541911 | D75: KN | E75: Taglio per rottura a scorrimento | I75: =0.3*C59*C28*C73 -> 1802410.764 | M75: e | N75: =MIN(ABS(N74),ABS(N71))/N69 -> 1.063715415 | O75: m | P75: 16 | Q75: =2*$N$53*$N$55*R75 -> 0 | R75: 0 | S75: 0 | T75: 0 | U75: 0
B76: tu | C76: =C75/C27/C28*1000 -> 0.375228284 | D76: Mpa | E76: tensione di taglio per rottura a scorrimento | M76: d | N76: =MIN(C27,MAX(C68,3*(C27/2-ABS(N75)*1000))) -> 1983.853755 | O76: mm | P76: 17 | Q76: 0 | R76: 0 | S76: 0 | T76: 0 | U76: 0
P77: 18 | Q77: 0 | R77: =IF(S77<0,IF(S77>-$N$50,S77*$C$7,MAX(-$N$51,-$N$52+($N$51-$N$52)/($N$56-$N$50+0.0000001)*(S77+$N$50))),0) -> 0 | S77: 0 | T77: 0 | U77: 0
B78: ROTTURA A TAGLIO PER FESSURAZIONE DIAGONALE | M78: A | N78: =IF(N60>0,(1000*N62*N59*N64*N61^2*(1/3-250/4*N64)+N62*N59/2*(N60^2-N61^2)-1000*N62*N59*N66*N67^2*(1/3-250/4*N66)),0)/1000000 -> 13.36784455 | P78: 19 | Q78: 0 | R78: 0 | S78: 0 | T78: 0 | U78: 0
M79: B | N79: =+SUMPRODUCT(Q60:Q81,T84:T105)/1000000 -> 152.7373025 | P79: 20 | Q79: 0 | R79: =IF(S79<0,IF(S79>-$N$50,S79*$C$7,MAX(-$N$51,-$N$52+($N$51-$N$52)/($N$56-$N$50+0.0000001)*(S79+$N$50))),0) -> 0 | S79: 0 | T79: 0 | U79: 0
B80: sH | C80: =C10*2*C36*C38*C41/(C45+C41)/C28*0 -> 0 | D80: Mpa | E80: tensione orizzontale di confinamento | N80: =+N70*(C27/2-N60)/1000 -> 121.0795005 | P80: Nastri,bordo1 | Q80: =2*$C$47*R80 -> 0 | R80: =IF(S80<0,IF(S80>-$N$47,S80*$C$7,MAX(-$N$49,-$N$48+($N$49-$N$48)/($N$56-$N$47+0.000001)*(S80+$N$47))),0) -> 0 | S80: =IF($C$47>0,-$N$65+($N$60-R104)/$N$60*$N$63,0) -> 0 | T80: =MIN(0,S80*R104)*2*$C$47 -> 0 | U80: 0
B81: b | C81: =MIN(MAX(1,'1- MURATURA NEL PIANO'!C20/C27),1.5) -> 1 | E81: Coefficiente adimensionale (H/L) | L81: =0.6*C36*2*C38*C41/(C45+C41)*C10*C73 -> 475735.68 | P81: Nastri,bordo2 | Q81: =2*$C$47*R81 -> 0 | R81: =IF(S81<0,IF(S81>-$N$47,S81*$C$7,MAX(-$N$49,-$N$48+($N$49-$N$48)/($N$56-$N$47+0.000001)*(S81+$N$47))),0) -> 0 | S81: =IF($C$47>0,-$N$65+($N$60-R105)/$N$60*$N$63,0) -> 0 | T81: =MIN(0,S81*R105)*2*$C$47 -> 0 | U81: 0
B82: ftd | C82: ='1- MURATURA NEL PIANO'!C40*C56 -> 0.07875 | D82: Mpa | E82: resistenza a trazione per fessurazione diagonale | L82: =+C27*C28*C82/C81*SQRT(MAX(0,1+(MAX(0,MIN(N62,C65))+C80)/C82))/1000 -> 161.3235158
B83: Vt,F | C83: =IF(C69=0,0,(C27*C28*C82/C81*SQRT(MAX(0,1+(MAX(0,MIN(N62,C65))+C80)/C82+(MAX(0,MIN(N62,C65))*C80)/C82^2))+0.6*C36*2*C38*C41/(C45+C41)*C10*C73)/1000) -> 0 | D83: KN | E83: Taglio per rottura a fessurazione diagonale | L83: =+C11*(C41*C38*2*Q57*C37+C47*4) -> 27360 | M83: Nsd | N83: =N69 -> 63.25
B84: tu | C84: =C83/(C27*C28)*1000 -> 0 | D84: Mpa | E84: Tensione di taglio per fessurazione diagonale | M84: Msd | N84: =N74 -> 67.28 | P84: 1 | Q84: y1 | R84: =IF(P84<=$Q$57,(C27-(Q57-1)*Q55)/2,0) -> 150 | S84: mm | T84: =$N$60-R84 -> -17.4050847 | U84: =AVERAGE(R84:R89) -> 1275 | V84: =(C27-C68)/2+C68 -> 1725
M85: Af | N85: =2*N53*N55 -> 34.2 | P85: 2 | Q85: y2 | R85: =IF(P85<=$Q$57,$R$84+(P85-1)*$Q$55,0) -> 600 | S85: mm | T85: =$N$60-R85 -> -467.4050847
B86: SOMMARIO RISULTATI MURATURA RINFORZATA CON IL C.A.M. | M86: b | N86: =C28 -> 450 | P86: 3 | Q86: y3 | R86: =IF(P86<=$Q$57,$R$84+(P86-1)*$Q$55,0) -> 1050 | S86: mm | T86: -917.4050847
B87: Mu | C87: =C69 -> 0 | D87: KNm | E87: Momento ultimo a pressoflessione | M87: L | N87: =C27 -> 3450 | P87: 4 | Q87: y4 | R87: 1500 | S87: mm | T87: -1367.405085
C88: =IF(OR(C69=0,'1- MURATURA NEL PIANO'!C46=0),"-",C87/'1- MURATURA NEL PIANO'!C46) -> - | E88: Fattore di incremento resistenza a pressoflessione | M88: x | N88: =(N83*1000-N85*N52*N87)/(N62*0.8*0.85*N86-N85*N52*0.85) -> 4646.91667 | P88: 5 | Q88: y5 | R88: 1950 | S88: mm | T88: -1817.405085
B89: Tu | C89: =MIN(C75,C83,C69*20000/'1- MURATURA NEL PIANO'!C20) -> 0 | D89: KN | E89: Taglio ultimo | G89: =IF(C89=C83,"Rottura a taglio per fessurazione diagonale",IF(C89=C75,"Rottura a taglio per scorrimento","Rottura a taglio per flessione")) -> Rottura a taglio per fessurazione diagonale | P89: 6 | Q89: y6 | R89: 2400 | S89: mm | T89: -2267.405085
C90: =IF(OR(C89=0,'1- MURATURA NEL PIANO'!C47=0),"-",C89/'1- MURATURA NEL PIANO'!C47) -> - | E90: Fattore di incremento resistenza a taglio | P90: 7 | Q90: y7 | R90: 2850 | S90: mm | T90: -2717.405085
B91: fd | C91: =C66 -> 3.86991039 | D91: Mpa | E91: tensione di calcolo a compressione muratura confinata | P91: 8 | Q91: y8 | R91: 3300 | S91: mm | T91: -3167.405085
C92: =C91/'1- MURATURA NEL PIANO'!C48 -> 2.036794942 | E92: Fattore incremento resistenza a compressione | P92: 9 | Q92: y9 | R92: 0 | S92: mm | T92: 132.5949153
B93: tu | C93: =MIN(C76,C84) -> 0 | D93: Mpa | E93: tensione resistente a taglio | P93: 10 | Q93: y10 | R93: 0 | S93: mm | T93: 132.5949153
P94: 11 | Q94: y11 | R94: 0 | S94: mm | T94: 132.5949153
P95: 12 | Q95: y12 | R95: 0 | S95: mm | T95: 132.5949153
P96: 13 | Q96: y13 | R96: 0 | S96: mm | T96: 132.5949153
P97: 14 | Q97: y14 | R97: 0 | S97: mm | T97: 132.5949153
P98: 15 | Q98: y15 | R98: 0 | S98: mm | T98: 132.5949153
P99: 16 | Q99: y16 | R99: 0 | S99: mm | T99: 132.5949153
P100: 17 | Q100: y17 | R100: 0 | S100: mm | T100: 132.5949153
P101: 18 | Q101: y18 | R101: 0 | S101: mm | T101: 132.5949153
P102: 19 | Q102: y19 | R102: 0 | S102: mm | T102: 132.5949153
P103: 20 | Q103: y20 | R103: 0 | S103: mm | T103: 132.5949153
Q104: Angol1 | R104: =IF(C47=0,0,150) -> 0 | S104: mm | T104: =$N$60-R104 -> 132.5949153
Q105: Angol2 | R105: =IF(C47=0,0,C27-R104) -> 0 | S105: mm | T105: 132.5949153
Q107: L'= | R107: =R105-R104 -> 0

Sheet 3-CONFINAMENTO CAM FUORI PIANO (hidden)
B1: EDIL CAM Sistemi S.r.l. Cuciture Attive dei Manufatti strutturali Rinforzo ed adeguamento sismico www.edilcam.com
B4: CARATTERISTICHE DEI MATERIALI
B6: ACCIAO INOX
B7: Ef | C7: ='2-CONFINAMENTO CAM NEL PIANO'!C7 -> 200000 | D7: Mpa | E7: ='2-CONFINAMENTO CAM NEL PIANO'!E7 -> Modulo elastico
B8: ftk | C8: ='2-CONFINAMENTO CAM NEL PIANO'!C8 -> 1000 | D8: Mpa | E8: ='2-CONFINAMENTO CAM NEL PIANO'!E8 -> tensione di rottura nastro orizzontale
B9: ftk | C9: ='2-CONFINAMENTO CAM NEL PIANO'!C9 -> 650 | D9: Mpa | E9: ='2-CONFINAMENTO CAM NEL PIANO'!E9 -> tensione di snervamento nastro orizzontale
B10: fyd | C10: ='2-CONFINAMENTO CAM NEL PIANO'!C10 -> 560 | D10: Mpa | E10: ='2-CONFINAMENTO CAM NEL PIANO'!E10 -> tensione di calcolo nastro orizzontale
B11: fp | C11: ='2-CONFINAMENTO CAM NEL PIANO'!C11 -> 100 | D11: Mpa | E11: ='2-CONFINAMENTO CAM NEL PIANO'!E11 -> tensione di pretensionamento
B12: er | C12: ='2-CONFINAMENTO CAM NEL PIANO'!C12 -> 0.0028 | E12: ='2-CONFINAMENTO CAM NEL PIANO'!E12 -> deformazione ultima a rottura
B13: gf,d | C13: ='2-CONFINAMENTO CAM NEL PIANO'!C13 -> 1.25 | E13: ='2-CONFINAMENTO CAM NEL PIANO'!E13 -> coefficiente parziale collegamento sigillo
B15: MURATURA
B16: fm | C16: ='2-CONFINAMENTO CAM NEL PIANO'!C16 -> 1.9 | D16: Mpa | E16: ='2-CONFINAMENTO CAM NEL PIANO'!E16 -> resistenza media a compressione
B17: fmd | C17: ='2-CONFINAMENTO CAM NEL PIANO'!C17 -> 1.9 | D17: Mpa | E17: ='2-CONFINAMENTO CAM NEL PIANO'!E17 -> resistenza di calcolo a compressione verticale
B18: fhmk | C18: ='2-CONFINAMENTO CAM NEL PIANO'!C18 -> 1.425 | D18: Mpa | E18: ='2-CONFINAMENTO CAM NEL PIANO'!E18 -> resistenza di calcolo a compressione orizzontale
B19: fvko | C19: ='2-CONFINAMENTO CAM NEL PIANO'!C19 -> 0.035 | D19: Mpa | E19: ='2-CONFINAMENTO CAM NEL PIANO'!E19 -> resistenza caratteristica a taglio (to/FC)
B20: emu | C20: ='2-CONFINAMENTO CAM NEL PIANO'!C20 -> 0.0035 | E20: ='2-CONFINAMENTO CAM NEL PIANO'!E20 -> deformazione ultima a compressione
B21: FC | C21: ='2-CONFINAMENTO CAM NEL PIANO'!C21 -> 1 | E21: ='2-CONFINAMENTO CAM NEL PIANO'!E21 -> coefficiente di sicurezza materiale
B22: gm | C22: ='2-CONFINAMENTO CAM NEL PIANO'!C22 -> 1600 | D22: Kg/m3 | E22: ='2-CONFINAMENTO CAM NEL PIANO'!E22 -> densità di massa della muratura
B23: E | C23: ='2-CONFINAMENTO CAM NEL PIANO'!C23 -> 1080 | D23: Mpa | E23: ='2-CONFINAMENTO CAM NEL PIANO'!E23 -> modulo normale elastico (si può assumere pari a 1000 x fm)
B25: GEOMETRIA PANNELLO MURARIO
B27: L | C27: ='2-CONFINAMENTO CAM NEL PIANO'!C27 -> 3450 | D27: mm | E27: larghezza sezione
B28: t | C28: ='2-CONFINAMENTO CAM NEL PIANO'!C28 -> 450 | D28: mm | E28: profondità sezione
B30: GEOMETRIA RINFORZO
B31: Modo | C31: ='2-CONFINAMENTO CAM NEL PIANO'!C35 -> Q | E31: (Q=Quinconce, N=Normale)
B32: nstr | C32: ='2-CONFINAMENTO CAM NEL PIANO'!C36 -> 3 | E32: numero di nastri sovrapposti
B33: tfs | C33: ='2-CONFINAMENTO CAM NEL PIANO'!C38 -> 0.9 | D33: mm | E33: spessore singolo nastro
B34: tf | C34: ='2-CONFINAMENTO CAM NEL PIANO'!C39 -> 2.7 | D34: mm | E34: spessore totale nastri
B35: Fn | C35: ='2-CONFINAMENTO CAM NEL PIANO'!C40 -> 9576 | D35: N | E35: forza totale pretensionamento per la striscia di nastri sovrapposti
B36: bf | C36: ='2-CONFINAMENTO CAM NEL PIANO'!C41 -> 19 | D36: mm | E36: larghezza striscia rinforzo
B37: pfo | C37: ='2-CONFINAMENTO CAM NEL PIANO'!C42 -> 500 | D37: mm | E37: passo orizzontale del rinforzo
B38: pfv | C38: ='2-CONFINAMENTO CAM NEL PIANO'!C43 -> 250 | D38: mm | E38: passo verticale del rinforzo
B39: p'fo | C39: ='2-CONFINAMENTO CAM NEL PIANO'!C44 -> 840 | D39: mm | E39: passo orizzontale del rinforzo efficace
B40: p'fv | C40: ='2-CONFINAMENTO CAM NEL PIANO'!C45 -> 231 | D40: mm | E40: passo verticale del rinforzo efficace
B41: rf | C41: ='2-CONFINAMENTO CAM NEL PIANO'!C46 -> 0.001369802372 | E41: percentuale geometrica del rinforzo
B43: RESISTENZA E DEFORMAZIONE ULTIMA DI CALCOLO MURATURA CONFINATA
L44: x1 | M44: =(C50*C27*C28+C10*C57*C27)/(C17*C27*(1-C17/C23/C20)) -> 37.02457763
B45: fmd | C45: ='2-CONFINAMENTO CAM NEL PIANO'!C17 -> 1.9 | D45: Mpa | E45: resistenza di progetto della muratura | L45: xel | M45: =M44*C17/C23/C20 -> 18.61023743
B46: emu,c | C46: ='2-CONFINAMENTO CAM NEL PIANO'!C61 -> 0.00685496839 | E46: deformazione ultima a compressione muratura confinata | L46: M1 | M46: =(C17*(M44-M45)*(C28-M44+M45)*C27/2+C17*C27*M45^2/2-C10*C57*C27*(C28-M44))/1000000 -> 3.454705881
L47: ef | M47: =(C20/M44*(C28-M44)+C10/C7+C50/C23)*C7 -> 8375.40666
B48: PRESSOFLESSIONE VERTICALE MURATURA (Elastico perfettamente plastico)
B50: so | C50: ='1- MURATURA NEL PIANO'!C25*1000/('3-CONFINAMENTO CAM FUORI PIANO'!C27*'3-CONFINAMENTO CAM FUORI PIANO'!C28) -> 0.04074074074 | D50: Mpa | E50: Tensione verticale agente sul pannello | L50: xel | M50: =C51/C46*C45/C23 -> 2.840894772 | N50: mm
B51: x | C51: =(C50*C28)/(C45*(1-C45/(2*C46*C23))) -> 11.06957019 | D51: mm | E51: zona compressa della muratura
B52: Mu | C52: =(C45*C27/2*(C51^2-M50^2/3)+C50*C27*C28*(C28/2-C51))/1000000 -> 13.92389219 | D52: KNm | E52: Momento ultimo a pressoflessione
L53: a | M53: b | N53: c
B54: PRESSOFLESSIONE VERTICALE MURATURA CONFINATA (Elastico perfettamente plastico) | L54: =C45*(1-C45/(2*C46*C23)) -> 1.656191976 | M54: =C46*C7*C57-C56*C28 -> 14.5083917 | N54: =-C46*C28*C7*C57 -> -18347.47192
L55: x | M55: =(-M54+SQRT(M54^2-4*L54*N54))/(2*L54) -> 100.9636389 | N55: mm
B56: so | C56: ='2-CONFINAMENTO CAM NEL PIANO'!C65 -> 0.05836392915 | D56: Mpa | E56: Tensione verticale agente sul pannello | L56: xel | M56: =M55/C46*C45/C23 -> 25.91131081 | N56: mm
B57: Ainoxm | C57: ='2-CONFINAMENTO CAM NEL PIANO'!C67/2 -> 0.02973913043 | D57: mm2/mm | E57: densità rinforzo verticale acciaio inox | L57: fy | M57: =C46/M55*(C28-M55)*C7 -> 4739.593876 | N57: Mpa
B58: x | C58: =IF(M57>C10-C11,M64,M55) -> 25.91347004 | D58: mm | E58: zona compressa della muratura | L58: Mu | M58: =(C45*C27/2*(M55^2-M56^2/3)+M57*C57*C27*(C28-M55)+C56*C27*C28*(C28/2-M55))/1000000 -> 213.6453588 | N58: KNm
B59: Mu | C59: =IF(M57>C10,M66,M58) -> 44.558094 | D59: KNm | E59: Momento ultimo a pressoflessione
C60: =C59/C52 -> 3.200117712 | E60: Fattore di incremento resistenza a pressoflessione | L60: C | M60: =L54*M55/1000*C27 -> 576.8923316 | N60: KN
L61: T | M61: =-C46/M55*(C28-M55)*C7*C57/1000*C27 -> -486.2823316 | N61: KN
L62: N | M62: =C56*C28/1000*C27 -> 90.61 | N62: KN
L64: x | M64: =(C56*C28+C10*C57)/(C45*(1-C45/(2*C46*C23))) -> 25.91347004 | N64: mm
L65: xel | M65: =M64/C46*C45/C23 -> 6.650433601 | N65: mm
L66: Mu | M66: =(C45*C27/2*(M64^2-M65^2/3)+C10*C57*C27*(C28-M64)+C56*C27*C28*(C28/2-M64))/1000000 -> 44.558094 | N66: Knm
L68: C | M68: =C45*C27*M64*(1-C45/(2*C46*C23))/1000 -> 148.066 | N68: KN
L69: T | M69: =-C10*C57*C27/1000 -> -57.456 | N69: KN
L70: N | M70: =M69+M68 -> 90.61 | N70: KN

Sheet 4-PANNELLI MULTIPLI
A1: Riga inizio calcolo | B1: 5
A2: ELEMENTO | B2: PARAMETRI MURATURA | G2: DISPOSIZIONE RINFORZO | L2: SOLLECITAZIONI | O2: STATO ATTUALE | V2: MURATURA RINFORZATA | AK2: 37 | AL2: 38 | AM2: 39 | AN2: 40 | AO2: 41 | AP2: 42 | AQ2: 43 | AR2: 44 | AS2: 45
B3: MAT | C3: fmd | D3: L | E3: t | F3: H | G3: Nastri verticali spigolo | H3: nonastri | I3: nvnastri | J3: pfo | K3: pfv | L3: NSd | M3: MEd | N3: VEd | O3: NRes | P3: MRes | Q3: CS.flex | R3: VFess | S3: VScorr | T3: CS.V | U3: Tipo | V3: fmd,c | W3: emu,c | X3: Effetto Diatono CAM | Y3: NRes | Z3: MRes | AA3: CS.flex | AB3: VFess | AC3: VScorr | AD3: CS.V | AE3: Tipo | AJ3: 8 | AK3: N°pos Nastri verticali | AL3: N°pos Nastri Orizzontali | AM3: N°fori-Maglia base | AN3: N°pos Spigolo | AO3: N°fori-Spigolo
C4: Mpa | D4: mm | E4: mm | F4: mm | I4: mm | J4: mm | K4: mm | L4: KN | M4: KNm | N4: KN | O4: KN | P4: KNm | R4: KN | S4: KN | V4: Mpa | Y4: KNm | Z4: KNm | AB4: KN | AC4: KN | AG4: MAT1 | AH4: fu-mur | AI4: fu-cam | AJ4: 7 | AP4: Edmur | AQ4: EdCAM | AT4: Q/N | AU4: n°V
A5: muratura A | B5: MUR1 | C5: 1.9 | D5: 5000 | E5: 400 | F5: 3000 | H5: 2 | I5: 0 | J5: 1200 | K5: 500 | L5: 85 | M5: 1 | N5: 1 | O5: 85 | P5: 207.6151316 | Q5: 207.6151316 | R5: 141.2444689 | S5: 104 | T5: 104 | U5: V-Sc | V5: 2.997705638 | W5: 0.00398587381 | X5: 1.5 | Y5: 85 | Z5: 209.4265109 | AA5: 209.4265109 | AB5: 425.2562133 | AC5: 368.8239954 | AD5: 368.8239954 | AE5: V-Sc | AF5: =MATCH(B5,$AG$5:$AG$14,0) -> 1 | AG5: ='0-MATERIALI'!B6 -> MUR1 | AH5: 0.02533333333 | AI5: 0.0468235575 | AK5: 5 | AL5: 6 | AM5: 18 | AN5: 0 | AO5: 0 | AP5: =AH5*P5 -> 5.259583333 | AQ5: =AI5*Z5 -> 9.806094274 | AT5: =IF(OR(MID(H5,1,1)="N",MID(H5,1,1)="Q"),MID(H5,1,1),"") ->  | AU5: =IF(OR(MID(H5,1,1)="N",MID(H5,1,1)="Q"),INT(MID(H5,2,2)),H5) -> 2
A6: muratura A | B6: MUR1 | C6: 1.9 | D6: 800 | E6: 400 | F6: 3000 | H6: 2 | I6: 0 | J6: 800 | K6: 200 | L6: 42.5 | M6: 1 | N6: 1 | O6: 42.5 | P6: 15.77878289 | Q6: 15.77878289 | R6: 21.04217986 | S6: 28.2 | T6: 21.04217986 | U6: V-Fess | V6: 1.9 | W6: 0.0035 | X6: 1 | Y6: 42.5 | Z6: 15.77878289 | AA6: 15.77878289 | AB6: 112.9717799 | AC6: 120.1295954 | AD6: 112.9717799 | AE6: V-Fess | AF6: =MATCH(B6,$AG$5:$AG$14,0) -> 1 | AG6: ='0-MATERIALI'!B7 ->  | AH6: 0.05066666666 | AI6: 0.05066666667 | AK6: 1 | AL6: 15 | AM6: 15 | AN6: 0 | AO6: 0 | AP6: =AH6*P6 -> 0.7994583332 | AQ6: =AI6*Z6 -> 0.7994583333 | AT6: =IF(OR(MID(H6,1,1)="N",MID(H6,1,1)="Q"),MID(H6,1,1),"") ->  | AU6: =IF(OR(MID(H6,1,1)="N",MID(H6,1,1)="Q"),INT(MID(H6,2,2)),H6) -> 2
A7: muratura A | B7: MUR1 | C7: 1.9 | D7: 1650 | E7: 400 | F7: 3100 | H7: 3 | I7: 1 | J7: 1200 | K7: 500 | L7: 63.25 | M7: 67.28 | N7: 138.7 | O7: 63.25 | P7: 49.47644427 | Q7: 0.7353811574 | R7: 38.82859771 | S7: 27.09607653 | T7: 0.1953574372 | U7: V-Sc | V7: 1.9 | W7: 0.0035 | X7: 1 | Y7: 63.24979243 | Z7: 66.5126101 | AA7: 0.9885940859 | AB7: 143.5829215 | AC7: 149.7207979 | AD7: 1.035204913 | AE7: V-Fess | AF7: 1 | AG7: ='0-MATERIALI'!B8 ->  | AH7: 0.03404479578 | AI7: 0.02639618565 | AK7: 2 | AL7: 6 | AM7: 9 | AN7: 0 | AO7: 0 | AP7: 1.684415441 | AQ7: 1.755679204 | AU7: 3
AG8: ='0-MATERIALI'!B9 ->  | AH8: 0.008532900897 | AI8: 0.007851895502 | AK8: 2 | AL8: 6 | AM8: 9 | AN8: 0 | AO8: 0 | AP8: 0 | AQ8: 0 | AR8: =AQ8/AP8 ->  | AU8: 0
AG9: ='0-MATERIALI'!B10 ->  | AH9: 350000000 | AI9: 0.02660401538 | AK9: 2 | AL9: 6 | AM9: 9 | AN9: 0 | AO9: 0 | AP9: 0 | AQ9: 0 | AR9: =AQ9/AP9 ->  | AU9: 0
AG10: ='0-MATERIALI'!B11 ->  | AH10: 0.01575058486 | AI10: 0.01349503173 | AK10: 2 | AL10: 6 | AM10: 9 | AN10: 0 | AO10: 0 | AP10: 0 | AQ10: 0 | AU10: 0
AG11: ='0-MATERIALI'!B12 ->  | AH11: 0.003954195742 | AI11: 0.003954195742 | AK11: 5751 | AL11: 0 | AM11: 0 | AN11: 0 | AO11: 0 | AP11: 0 | AQ11: 0 | AU11: 0
AG12: ='0-MATERIALI'!B13 ->  | AH12: 0.001808811305 | AI12: 0.001695737621 | AK12: 5 | AL12: 7 | AM12: 21 | AN12: 2 | AO12: 10 | AP12: 0 | AQ12: 0 | AU12: 0
AG13: ='0-MATERIALI'!B14 ->  | AH13: 0.001447771124 | AI13: 0.001384083293 | AK13: 5 | AL13: 7 | AM13: 21 | AN13: 2 | AO13: 10 | AP13: 0 | AQ13: 0 | AU13: 0
AG14: ='0-MATERIALI'!B15 ->  | AH14: 0.001206877427 | AI14: 0.001170886077 | AK14: 5 | AL14: 7 | AM14: 21 | AN14: 2 | AO14: 10 | AP14: 0 | AQ14: 0 | AU14: 0
AH15: 0.001034712316 | AI15: 0.001019258988 | AK15: 5 | AL15: 7 | AM15: 21 | AN15: 2 | AO15: 10 | AP15: 0 | AQ15: 0 | AU15: 0
AH16: 0.0009055347482 | AI16: 0.0009000774403 | AK16: 5 | AL16: 7 | AM16: 21 | AN16: 2 | AO16: 10 | AP16: 0 | AQ16: 0 | AU16: 0
AH17: 0.0007892860178 | AI17: 0.00078904338 | AK17: 5 | AL17: 7 | AM17: 21 | AN17: 2 | AO17: 10 | AP17: 0 | AQ17: 0 | AU17: 0
AH18: 0.0005900048505 | AI18: 0.0005900048421 | AK18: 5 | AL18: 7 | AM18: 21 | AN18: 2 | AO18: 10 | AP18: 0 | AQ18: 0 | AU18: 0
AH19: 0.0004142988974 | AI19: 0.000414297942 | AK19: 5 | AL19: 7 | AM19: 21 | AN19: 2 | AO19: 10 | AP19: 0 | AQ19: 0 | AU19: 0
AH20: 0.0004054832799 | AI20: 0.0003842057163 | AK20: 5 | AL20: 7 | AM20: 21 | AN20: 2 | AO20: 10 | AP20: 0 | AQ20: 0 | AU20: 0
AH21: 0.0004046026902 | AI21: 0.0003833963875 | AK21: 5 | AL21: 7 | AM21: 21 | AN21: 2 | AO21: 10 | AP21: 0 | AQ21: 0 | AU21: 0
AH22: 0.0004038176205 | AI22: 0.000382694561 | AK22: 5 | AL22: 7 | AM22: 21 | AN22: 2 | AO22: 10 | AP22: 0 | AQ22: 0 | AU22: 0
AH23: 0.0004031119931 | AI23: 0.0003820938159 | AK23: 5 | AL23: 7 | AM23: 21 | AN23: 2 | AO23: 10 | AP23: 0 | AQ23: 0 | AU23: 0
AK24: 2 | AL24: 6 | AM24: 9 | AN24: 2 | AO24: 10 | AP24: 0 | AQ24: 0 | AU24: 0
AK25: 4 | AL25: 6 | AM25: 15 | AN25: 0 | AO25: 0 | AP25: 0 | AQ25: 0 | AU25: 0
AK26: 3 | AL26: 8 | AM26: 16 | AN26: 0 | AO26: 0 | AP26: 0 | AQ26: 0 | AU26: 0
AK27: 1 | AL27: 4 | AM27: 4 | AN27: 2 | AO27: 10 | AP27: 0 | AQ27: 0 | AU27: 0
AK28: 1 | AL28: 5 | AM28: 5 | AN28: 2 | AO28: 10 | AP28: 0 | AQ28: 0 | AU28: 0
AK29: 1 | AL29: 7 | AM29: 7 | AN29: 2 | AO29: 10 | AP29: 0 | AQ29: 0 | AU29: 0
AK30: 6 | AL30: 7 | AM30: 24.5 | AN30: 0 | AO30: 0 | AP30: 0 | AQ30: 0 | AU30: 0
AK31: 2 | AL31: 7 | AM31: 10.5 | AN31: 2 | AO31: 10 | AP31: 0 | AQ31: 0 | AU31: 0
AK32: 8 | AL32: 7 | AM32: 31.5 | AN32: 0 | AO32: 0 | AP32: 0 | AQ32: 0 | AU32: 0
AK33: 1 | AL33: 4 | AM33: 4 | AN33: 2 | AO33: 10 | AP33: 0 | AQ33: 0 | AU33: 0
AK34: 1 | AL34: 4 | AM34: 4 | AN34: 2 | AO34: 10 | AP34: 0 | AQ34: 0 | AU34: 0
AK35: 1 | AL35: 4 | AM35: 4 | AN35: 2 | AO35: 10 | AP35: 0 | AQ35: 0 | AU35: 0
AK36: 6 | AL36: 4 | AM36: 14 | AN36: 0 | AO36: 0 | AP36: 0 | AQ36: 0 | AU36: 0
AK37: 2 | AL37: 5 | AM37: 7.5 | AN37: 2 | AO37: 10 | AP37: 0 | AQ37: 0 | AU37: 0
AK38: 8 | AL38: 4 | AM38: 18 | AN38: 0 | AO38: 0 | AP38: 0 | AQ38: 0 | AU38: 0
AK39: 1 | AL39: 6 | AM39: 6 | AN39: 0 | AO39: 0 | AP39: 0 | AQ39: 0 | AU39: 0
AK40: 3 | AL40: 6 | AM40: 12 | AN40: 0 | AO40: 0 | AP40: 0 | AQ40: 0 | AU40: 0
AK41: 6 | AL41: 6 | AM41: 21 | AN41: 0 | AO41: 0 | AP41: 0 | AQ41: 0 | AU41: 0
AK42: 4 | AL42: 6 | AM42: 15 | AN42: 0 | AO42: 0 | AP42: 0 | AQ42: 0 | AU42: 0
AK43: 8 | AL43: 6 | AM43: 27 | AN43: 0 | AO43: 0 | AP43: 0 | AQ43: 0 | AU43: 0
AK44: 1 | AL44: 4 | AM44: 4 | AN44: 0 | AO44: 0 | AP44: 0 | AQ44: 0 | AU44: 0
AK45: 3 | AL45: 4 | AM45: 8 | AN45: 0 | AO45: 0 | AP45: 0 | AQ45: 0 | AU45: 0
AK46: 6 | AL46: 5 | AM46: 17.5 | AN46: 0 | AO46: 0 | AP46: 0 | AQ46: 0 | AU46: 0
AK47: 4 | AL47: 4 | AM47: 10 | AN47: 0 | AO47: 0 | AP47: 0 | AQ47: 0 | AU47: 0
AK48: 8 | AL48: 4 | AM48: 18 | AN48: 0 | AO48: 0 | AP48: 0 | AQ48: 0 | AU48: 0
AK49: 6 | AL49: 4 | AM49: 14 | AN49: 0 | AO49: 0 | AP49: 0 | AQ49: 0 | AU49: 0
AK50: 6 | AL50: 4 | AM50: 14 | AN50: 0 | AO50: 0 | AP50: 0 | AQ50: 0 | AU50: 0
AK51: 4 | AL51: 4 | AM51: 10 | AN51: 0 | AO51: 0 | AP51: 0 | AQ51: 0 | AU51: 0
AK52: 8 | AL52: 4 | AM52: 18 | AN52: 0 | AO52: 0 | AP52: 0 | AQ52: 0 | AU52: 0
AK53: 3 | AL53: 13 | AM53: 26 | AN53: 4 | AO53: 20 | AP53: 0 | AQ53: 0 | AU53: 0
AK54: 11 | AL54: 13 | AM54: 78 | AN54: 0 | AO54: 0 | AP54: 0 | AQ54: 0 | AU54: 0
AK55: 3 | AL55: 8 | AM55: 16 | AN55: 4 | AO55: 20 | AP55: 0 | AQ55: 0 | AU55: 0
AK56: 3 | AL56: 8 | AM56: 16 | AN56: 4 | AO56: 20 | AP56: 0 | AQ56: 0 | AU56: 0
AK57: 7 | AL57: 8 | AM57: 32 | AN57: 0 | AO57: 0 | AP57: 0 | AQ57: 0 | AU57: 0
AK58: 3 | AL58: 4 | AM58: 8 | AN58: 0 | AO58: 0 | AP58: 0 | AQ58: 0 | AU58: 0
AK59: 3 | AL59: 5 | AM59: 10 | AN59: 0 | AO59: 0 | AP59: 0 | AQ59: 0 | AU59: 0
AK60: 7 | AL60: 4 | AM60: 16 | AN60: 0 | AO60: 0 | AP60: 0 | AQ60: 0 | AU60: 0
AK61: 1 | AL61: 6 | AM61: 6 | AN61: 2 | AO61: 10 | AP61: 0 | AQ61: 0 | AU61: 0
AK62: 1 | AL62: 6 | AM62: 6 | AN62: 2 | AO62: 10 | AP62: 0 | AQ62: 0 | AU62: 0
AK63: 1 | AL63: 4 | AM63: 4 | AN63: 2 | AO63: 10 | AP63: 0 | AQ63: 0 | AU63: 0
AK64: 6 | AL64: 4 | AM64: 14 | AN64: 0 | AO64: 0 | AP64: 0 | AQ64: 0 | AU64: 0
AK65: 0 | AL65: 0 | AM65: 0 | AN65: 0 | AO65: 0 | AP65: 0 | AQ65: 0 | AU65: 0
AK66: 6 | AL66: 4 | AM66: 14 | AN66: 0 | AO66: 0 | AP66: 0 | AQ66: 0 | AU66: 0
AK67: 0 | AL67: 0 | AM67: 0 | AN67: 0 | AO67: 0 | AP67: 0 | AQ67: 0 | AU67: 0
AK68: 7 | AL68: 12 | AM68: 48 | AN68: 6 | AO68: 30 | AP68: 0 | AQ68: 0 | AU68: 0
AK69: 1 | AL69: 13 | AM69: 13 | AN69: 6 | AO69: 30 | AP69: 0 | AQ69: 0 | AU69: 0
AF70: =MATCH(B70,$AG$5:$AG$14,0) ->  | AK70: 4 | AL70: 13 | AM70: 32.5 | AN70: 6 | AO70: 30 | AP70: =AH70*P70 -> 0 | AQ70: =AI70*Z70 -> 0 | AT70: =IF(OR(MID(H70,1,1)="N",MID(H70,1,1)="Q"),MID(H70,1,1),"") ->  | AU70: =IF(OR(MID(H70,1,1)="N",MID(H70,1,1)="Q"),INT(MID(H70,2,2)),H70) -> 0
AK71: 5 | AL71: 9 | AM71: 27 | AN71: 2 | AO71: 10 | AP71: 0 | AQ71: 0 | AU71: 0
AK72: 1 | AL72: 10 | AM72: 10 | AN72: 6 | AO72: 30 | AP72: 0 | AQ72: 0 | AU72: 0
AK73: 1 | AL73: 14 | AM73: 14 | AN73: 8 | AO73: 40 | AP73: 0 | AQ73: 0 | AR73: =AQ73/AP73 ->  | AU73: 0
AK74: 2 | AL74: 8 | AM74: 12 | AN74: 4 | AO74: 20 | AP74: 0 | AQ74: 0 | AU74: 0
AK75: 0 | AL75: 0 | AM75: 0 | AN75: 0 | AO75: 0 | AP75: 0 | AQ75: 0 | AU75: 0
AK76: 1 | AL76: 4 | AM76: 4 | AN76: 0 | AO76: 0 | AP76: 0 | AQ76: 0 | AU76: 0
AK77: 1 | AL77: 5 | AM77: 5 | AN77: 2 | AO77: 10 | AP77: 0 | AQ77: 0 | AU77: 0
AK78: 5 | AL78: 5 | AM78: 15 | AN78: 0 | AO78: 0 | AP78: 0 | AQ78: 0 | AU78: 0
AK79: 0 | AL79: 0 | AM79: 0 | AN79: 0 | AO79: 0 | AP79: 0 | AQ79: 0 | AU79: 0
AK80: 7 | AL80: 16 | AM80: 64 | AN80: 4 | AO80: 20 | AP80: 0 | AQ80: 0 | AU80: 0
AK81: 5 | AL81: 11 | AM81: 33 | AN81: 4 | AO81: 20 | AP81: 0 | AQ81: 0 | AU81: 0
AK82: 0 | AL82: 0 | AM82: 0 | AN82: 0 | AO82: 0 | AP82: 0 | AQ82: 0 | AU82: 0
AK83: 0 | AL83: 0 | AM83: 0 | AN83: 0 | AO83: 0 | AP83: 0 | AQ83: 0 | AU83: 0
AK84: 5 | AL84: 7 | AM84: 21 | AN84: 0 | AO84: 0 | AP84: 0 | AQ84: 0 | AU84: 0
AK85: 3 | AL85: 7 | AM85: 14 | AN85: 4 | AO85: 20 | AP85: 0 | AQ85: 0 | AU85: 0
AK86: 0 | AL86: 0 | AM86: 0 | AN86: 0 | AO86: 0 | AP86: 0 | AQ86: 0 | AU86: 0
AK87: 3 | AL87: 6 | AM87: 12 | AN87: 0 | AO87: 0 | AP87: 0 | AQ87: 0 | AU87: 0
AK88: 3 | AL88: 6 | AM88: 12 | AN88: 0 | AO88: 0 | AP88: 0 | AQ88: 0 | AU88: 0
AK89: 1 | AL89: 6 | AM89: 6 | AN89: 2 | AO89: 10 | AP89: 0 | AQ89: 0 | AU89: 0
AK90: 6 | AL90: 4 | AM90: 14 | AN90: 0 | AO90: 0 | AP90: 0 | AQ90: 0 | AU90: 0
AK91: 0 | AL91: 0 | AM91: 0 | AN91: 0 | AO91: 0 | AP91: 0 | AQ91: 0 | AU91: 0
AK92: 5 | AL92: 4 | AM92: 12 | AN92: 0 | AO92: 0 | AP92: 0 | AQ92: 0 | AU92: 0
AK93: 8 | AL93: 12 | AM93: 54 | AN93: 0 | AO93: 0 | AP93: 0 | AQ93: 0 | AU93: 0
AK94: 0 | AL94: 0 | AM94: 0 | AN94: 0 | AO94: 0 | AP94: 0 | AQ94: 0 | AU94: 0
AK95: 6 | AL95: 7 | AM95: 24.5 | AN95: 0 | AO95: 0 | AP95: 0 | AQ95: 0 | AU95: 0
AK96: 0 | AL96: 0 | AM96: 0 | AN96: 0 | AO96: 0 | AP96: 0 | AQ96: 0 | AU96: 0
AK97: 6 | AL97: 4 | AM97: 14 | AN97: 0 | AO97: 0 | AP97: 0 | AQ97: 0 | AU97: 0
AK98: 5 | AL98: 10 | AM98: 30 | AN98: 4 | AO98: 20 | AP98: 0 | AQ98: 0 | AU98: 0
AK99: 7 | AL99: 7 | AM99: 28 | AN99: 0 | AO99: 0 | AP99: 0 | AQ99: 0 | AU99: 0
AK100: 8 | AL100: 4 | AM100: 18 | AN100: 0 | AO100: 0 | AP100: 0 | AQ100: 0 | AU100: 0
AK101: 2 | AL101: 4 | AM101: 6 | AN101: 0 | AO101: 0 | AP101: 0 | AQ101: 0 | AU101: 0
AK102: 1 | AL102: 4 | AM102: 4 | AN102: 0 | AO102: 0 | AP102: 0 | AQ102: 0 | AU102: 0
AK103: 8 | AL103: 4 | AM103: 18 | AN103: 0 | AO103: 0 | AP103: 0 | AQ103: 0 | AU103: 0
AU104: 0
AU105: 0
AU106: 0
AU107: 0
AU108: 0
AU109: 0
AU110: 0
AU111: 0
AU112: 0
AU113: 0
AU114: 0
AU115: 0
AU116: 0
AU117: 0
AU118: 0
AU119: 0
AU120: 0
AU121: 0
AU122: 0
AU123: 0
AU124: 0
AU125: 0
AU126: 0
AU127: 0
AU128: 0
AU129: 0
AU130: 0
AU131: 0
AU132: 0
AU133: 0
AF134: =MATCH(B134,$AG$5:$AG$14,0) ->  | AT134: =IF(OR(MID(H134,1,1)="N",MID(H134,1,1)="Q"),MID(H134,1,1),"") ->  | AU134: =IF(OR(MID(H134,1,1)="N",MID(H134,1,1)="Q"),INT(MID(H134,2,2)),H134) -> 0
AU135: 0
AU136: 0
AU137: 0
AU138: 0
AU139: 0
AU140: 0
AU141: 0
AU142: 0
AU143: 0
AU144: 0
AU145: 0
AU146: 0
AU147: 0
AU148: 0
AU149: 0
AU150: 0
AU151: 0
AU152: 0
AU153: 0
AU154: 0
AU155: 0
AU156: 0
AU157: 0
AU158: 0
AU159: 0
AU160: 0
AU161: 0
AU162: 0
AU163: 0
AU164: 0
AU165: 0
AU166: 0
AU167: 0
AU168: 0
AU169: 0
AU170: 0
AU171: 0
AU172: 0
AU173: 0
AU174: 0
AU175: 0
AU176: 0
AU177: 0
AU178: 0
AU179: 0
AU180: 0
AU181: 0
AU182: 0
AU183: 0
AU184: 0
AU185: 0
AU186: 0
AU187: 0
AU188: 0
AU189: 0
AU190: 0
AU191: 0
AU192: 0
AU193: 0
AU194: 0
AU195: 0
AU196: 0
AU197: 0
AF198: =MATCH(B198,$AG$5:$AG$14,0) ->  | AT198: =IF(OR(MID(H198,1,1)="N",MID(H198,1,1)="Q"),MID(H198,1,1),"") ->  | AU198: =IF(OR(MID(H198,1,1)="N",MID(H198,1,1)="Q"),INT(MID(H198,2,2)),H198) -> 0
AU199: 0
AU200: 0
... 925 more rows

Sheet 6-SINTESI (hidden)
J1: n°Righe / Elemento | K1: 2 | L1: Csmin | M1: 0.6
A2: ELEMENTO | E2: DISPOSIZIONE RINFORZO | J2: =NOW() -> 2015-10-29T09:06:35.910
B3: L | C3: t | D3: H | E3: Nastri verticali spigolo | F3: nonastri | G3: nvnastri | H3: pfo | I3: pfv | J3: C.S.Mu | K3: C.S.Vres | Q3: n,pos-vert | R3: Lmaglia,v | S3: nmaglie,v | T3: Ltot,v | U3: Peso
B4: mm | C4: mm | D4: mm | G4: mm | H4: mm | I4: mm | J4: % | K4: % | R4: m
A5: PianoT-M-1 | B5: 2360 | C5: 700 | D5: 3500 | F5: 2 | G5: 1 | H5: 750 | I5: 750 | J5: 0.7567412633 | K5: 0.6667124354 | O5: 1.085372816 | P5: 1.741985324 | Q5: =IF(E5="",IF(B5/H5-INT(B5/H5)>0,INT(B5/H5)+1,INT(B5/H5)),INT((B5-300)/H5)) -> 4 | R5: =(2*(C5+2*I5)+200)/1000 -> 4.6 | S5: =D5/2/I5 -> 2.333333333 | T5: =S5*R5*G5*Q5 -> 42.93333333 | U5: =0.019*0.001*7850*T5 -> 6.403506667
A6: PianoT-M-2 | B6: 1570 | C6: 700 | D6: 3500 | F6: 3 | G6: 1 | H6: 750 | I6: 750 | J6: 0.9130936326 | K6: 0.5939123013 | O6: 0.9217480236 | P6: 1.141902999 | Q6: 3 | R6: 4.6 | S6: 2.333333333 | T6: 32.2 | U6: 4.80263
A7: PianoT-M-23 | B7: 1700 | C7: 700 | D7: 3500 | F7: 2 | G7: 1 | H7: 750 | I7: 750 | J7: 18.17566451 | K7: 0.7571843808 | O7: 0.9247884189 | P7: 1.738418377 | Q7: 3 | R7: 4.6 | S7: 2.333333333 | T7: 32.2 | U7: 4.80263
A8: PianoT-M-28 | B8: 1235 | C8: 700 | D8: 3500 | F8: 2 | G8: 1 | H8: 750 | I8: 750 | J8: 2.225249041 | K8: 0.6228406656 | O8: 0.8547065558 | P8: 1.037463635 | Q8: 2 | R8: 4.6 | S8: 2.333333333 | T8: 21.46666667 | U8: 3.201753333
A9: PianoT-M-29 | B9: 1010 | C9: 700 | D9: 3500 | F9: 2 | G9: 1 | H9: 750 | I9: 750 | J9: 3.170904687 | K9: 0.7874392126 | O9: 0.7964180009 | P9: 1.142316641 | Q9: 2 | R9: 4.6 | S9: 2.333333333 | T9: 21.46666667 | U9: 3.201753333
A10: PianoT-M-32 | B10: 1184 | C10: 700 | D10: 3500 | F10: 2 | G10: 1 | H10: 750 | I10: 750 | J10: 1.258255342 | K10: 0.8385049449 | O10: 0.8125998661 | P10: 1.264832953 | Q10: 2 | R10: 4.6 | S10: 2.333333333 | T10: 21.46666667 | U10: 3.201753333
A11: PianoT-M-36 | B11: 6000 | C11: 350 | D11: 3500 | F11: 5 | G11: 1 | H11: 750 | I11: 750 | J11: 0.4928461412 | K11: 0.5753041941 | O11: 0.7807463303 | P11: 0.8027209868 | Q11: 8 | R11: 3.9 | S11: 2.333333333 | T11: 72.8 | U11: 10.85812
A12: PianoT-M-8 | B12: 2070 | C12: 700 | D12: 3500 | F12: 5 | G12: 1 | H12: 750 | I12: 750 | J12: 0.8758182897 | K12: 0.5820678155 | O12: 0.8865748218 | P12: 0.8465330924 | Q12: 3 | R12: 4.6 | S12: 2.333333333 | T12: 32.2 | U12: 4.80263
A13: PianoT-M-12 | B13: 2109 | C13: 700 | D13: 3500 | F13: 5 | G13: 1 | H13: 750 | I13: 750 | J13: 0.695911555 | K13: 0.636262384 | O13: 1.156817206 | P13: 0.8729965264 | Q13: 3 | R13: 4.6 | S13: 2.333333333 | T13: 32.2 | U13: 4.80263
A14: PianoT-M-13 | B14: 2520 | C14: 700 | D14: 3500 | F14: 2 | G14: 1 | H14: 750 | I14: 750 | J14: 33.10593995 | K14: 0.6065329219 | O14: 2.327106654 | P14: 1.2163855 | Q14: 4 | R14: 4.6 | S14: 2.333333333 | T14: 42.93333333 | U14: 6.403506667
A15: PianoT-M-14 | B15: 2590 | C15: 700 | D15: 3500 | F15: 3 | G15: 1 | H15: 750 | I15: 750 | J15: 4.003342693 | K15: 0.5853372376 | O15: 2.034920786 | P15: 1.28557062 | Q15: 4 | R15: 4.6 | S15: 2.333333333 | T15: 42.93333333 | U15: 6.403506667
A16: PianoT-M-17 | B16: 3770 | C16: 700 | D16: 3500 | F16: 2 | G16: 1 | H16: 750 | I16: 750 | J16: 1.095625379 | K16: 0.6361543647 | O16: 1.680934773 | P16: 1.109303946 | Q16: 6 | R16: 4.6 | S16: 2.333333333 | T16: 64.4 | U16: 9.60526
A17: PianoT-M-18 | B17: 3200 | C17: 700 | D17: 3500 | F17: 2 | G17: 1 | H17: 750 | I17: 750 | J17: 0.8854315628 | K17: 0.6850436548 | O17: 1.017482051 | P17: 0.943374928 | Q17: 5 | R17: 4.6 | S17: 2.333333333 | T17: 53.66666667 | U17: 8.004383333
A18: PianoT-M-35 | B18: 3460 | C18: 700 | D18: 3500 | F18: 2 | G18: 1 | H18: 750 | I18: 750 | J18: 0.7389302728 | K18: 0.7338484174 | O18: 1.192875139 | P18: 0.8560931155 | Q18: 5 | R18: 4.6 | S18: 2.333333333 | T18: 53.66666667 | U18: 8.004383333
A19: PianoT-M-39 | B19: 1510 | C19: 700 | D19: 3500 | F19: 2 | G19: 1 | H19: 750 | I19: 750 | J19: 0.932142546 | K19: 0.6425698959 | O19: 2.243150385 | P19: 0.9642780321 | Q19: 3 | R19: 4.6 | S19: 2.333333333 | T19: 32.2 | U19: 4.80263
A20: PianoT-M-41 | B20: 3570 | C20: 700 | D20: 3500 | F20: 2 | G20: 1 | H20: 750 | I20: 750 | J20: 0.7592390604 | K20: 0.7015499601 | O20: 0.9660609631 | P20: 1.348220645 | Q20: 5 | R20: 4.6 | S20: 2.333333333 | T20: 53.66666667 | U20: 8.004383333
A21: PianoP1-M-19 | B21: 6970 | C21: 600 | D21: 3250 | F21: 2 | G21: 1 | H21: 750 | I21: 750 | J21: 3.092025753 | K21: 0.7199669924 | O21: 2.233164566 | P21: 1.164933857 | Q21: 10 | R21: 4.4 | S21: 2.166666667 | T21: 95.33333333 | U21: 14.21896667
A22: PianoP1-M-37 | B22: 7040 | C22: 600 | D22: 3250 | F22: 2 | G22: 1 | H22: 750 | I22: 750 | J22: 5.353755957 | K22: 0.8650676584 | O22: 1.980988269 | P22: 1.458631365 | Q22: 10 | R22: 4.4 | S22: 2.166666667 | T22: 95.33333333 | U22: 14.21896667
A23: PianoP1-M-40 | B23: 1510 | C23: 600 | D23: 3250 | F23: 2 | G23: 1 | H23: 750 | I23: 750 | J23: 8.751006014 | K23: 0.7112442366 | O23: 1.328213267 | P23: 1.591552883 | Q23: 3 | R23: 4.4 | S23: 2.166666667 | T23: 28.6 | U23: 4.26569
A24: PianoP1-M-15 | B24: 4010 | C24: 350 | D24: 3250 | F24: 2 | G24: 1 | H24: 750 | I24: 750 | J24: 4.713414295 | K24: 0.6266969039 | O24: 1.450786519 | P24: 1.265281188 | Q24: 6 | R24: 3.9 | S24: 2.166666667 | T24: 50.7 | U24: 7.561905
A25: PianoP1-M-21 | B25: 850 | C25: 350 | D25: 3250 | F25: 3 | G25: 1 | H25: 750 | I25: 750 | J25: 7.63952188 | K25: 0.6117068715 | O25: 1.396555512 | P25: 0.9723021653 | Q25: 2 | R25: 3.9 | S25: 2.166666667 | T25: 16.9 | U25: 2.520635
A26: PianoP1-M-7 | B26: 2150 | C26: 700 | D26: 3250 | F26: 2 | G26: 1 | H26: 750 | I26: 750 | J26: 2.290281598 | K26: 0.6210183371 | O26: 1.288688502 | P26: 0.9449666746 | Q26: 3 | R26: 4.6 | S26: 2.166666667 | T26: 29.9 | U26: 4.459585
A27: PianoP1-M-9 | B27: 2230 | C27: 700 | D27: 3250 | F27: 2 | G27: 1 | H27: 750 | I27: 750 | J27: 2.045106224 | K27: 0.6015994762 | O27: 0.962980029 | P27: 0.8203252712 | Q27: 3 | R27: 4.6 | S27: 2.166666667 | T27: 29.9 | U27: 4.459585
A28: PianoP1-M-3 | B28: 2315 | C28: 600 | D28: 3250 | F28: 2 | G28: 1 | H28: 750 | I28: 750 | J28: 0.9423381498 | K28: 0.973483923 | O28: 0.8430271925 | P28: 0.880495146 | Q28: 4 | R28: 4.4 | S28: 2.166666667 | T28: 38.13333333 | U28: 5.687586667
A29: PianoP1-M-4 | B29: 1450 | C29: 600 | D29: 3250 | F29: 3 | G29: 1 | H29: 750 | I29: 750 | J29: 2.702379925 | K29: 0.6400524045 | O29: 0.8333900253 | P29: 2.405730166 | Q29: 2 | R29: 4.4 | S29: 2.166666667 | T29: 19.06666667 | U29: 2.843793333
A30: PianoP1-M-25 | B30: 1150 | C30: 600 | D30: 3250 | F30: 2 | G30: 1 | H30: 750 | I30: 750 | J30: 3.449694785 | K30: 0.771829362 | O30: 1.402767406 | P30: 1.587413348 | Q30: 2 | R30: 4.4 | S30: 2.166666667 | T30: 19.06666667 | U30: 2.843793333
A31: PianoP1-M-27 | B31: 1270 | C31: 600 | D31: 3250 | F31: 4 | G31: 1 | H31: 750 | I31: 750 | J31: 4.042183796 | K31: 0.6126291335 | O31: 1.754131346 | P31: 0.9501662885 | Q31: 2 | R31: 4.4 | S31: 2.166666667 | T31: 19.06666667 | U31: 2.843793333
A32: PianoP1-M-31 | B32: 1575 | C32: 600 | D32: 3250 | F32: 2 | G32: 1 | H32: 750 | I32: 750 | J32: 2.788469611 | K32: 0.7008286971 | O32: 1.094196578 | P32: 0.9182870102 | Q32: 3 | R32: 4.4 | S32: 2.166666667 | T32: 28.6 | U32: 4.26569
A33: PianoP1-M-34 | B33: 1985 | C33: 600 | D33: 3250 | F33: 2 | G33: 1 | H33: 750 | I33: 750 | J33: 14.48402327 | K33: 0.7916924401 | O33: 1.503421725 | P33: 1.260034765 | Q33: 3 | R33: 4.4 | S33: 2.166666667 | T33: 28.6 | U33: 4.26569
A34: PianoP2-M-5 | B34: 1440 | C34: 600 | D34: 3000 | F34: 4 | G34: 1 | H34: 750 | I34: 750 | J34: 11.79220663 | K34: 0.6421251646 | O34: 3.469961237 | P34: 1.058329329 | Q34: 2 | R34: 4.4 | S34: 2 | T34: 17.6 | U34: 2.62504
A35: PianoP2-M-6 | B35: 2270 | C35: 600 | D35: 3000 | F35: 2 | G35: 1 | H35: 750 | I35: 750 | J35: 5.428122558 | K35: 1.004839291 | O35: 0.9862024892 | P35: 1.053224977 | Q35: =IF(E35="",IF(B35/H35-INT(B35/H35)>0,INT(B35/H35)+1,INT(B35/H35)),INT((B35-300)/H35)) -> 4 | R35: =(2*(C35+2*I35)+200)/1000 -> 4.4 | S35: =D35/2/I35 -> 2 | T35: 35.2 | U35: =0.019*0.001*7850*T35 -> 5.25008
A36: PianoP2-M-24 | B36: 1200 | C36: 600 | D36: 3000 | F36: 3 | G36: 1 | H36: 750 | I36: 750 | J36: 6.529431814 | K36: 0.6905185904 | O36: 0.9852988819 | P36: 0.841491897 | Q36: 2 | R36: 4.4 | S36: 2 | T36: 17.6 | U36: 2.62504
A37: PianoP2-M-26 | B37: 1500 | C37: 400 | D37: 3000 | F37: 3 | G37: 1 | H37: 750 | I37: 750 | J37: 1.842143036 | K37: 0.6567070679 | O37: 3.079351357 | P37: 1.010246556 | Q37: 2 | R37: 4 | S37: 2 | T37: =S37*R37*G37*Q37 -> 16 | U37: 2.3864
A38: PianoP2-M-33 | B38: 1975 | C38: 400 | D38: 3000 | F38: 3 | G38: 1 | H38: 750 | I38: 750 | J38: 5.359102391 | K38: 0.7057384333 | O38: 0.930624278 | P38: 0.7902297169 | Q38: 3 | R38: 4 | S38: 2 | T38: 24 | U38: 3.5796
A39: PianoP2-M-10 | B39: 1960 | C39: 650 | D39: 3000 | F39: 5 | G39: 1 | H39: 750 | I39: 750 | J39: 0.7780048857 | K39: 0.6670274851 | O39: 2.691684501 | P39: 0.9728811159 | Q39: 3 | R39: 4.5 | S39: 2 | T39: 27 | U39: 4.02705
A40: PianoP2-M-11 | B40: 2120 | C40: 650 | D40: 3000 | F40: 4 | G40: 1 | H40: 750 | I40: 750 | J40: 0.9267035483 | K40: 0.6440991004 | O40: 1.500855512 | P40: 1.065639121 | Q40: 3 | R40: 4.5 | S40: 2 | T40: 27 | U40: 4.02705
A41: PianoP2-M-16 | B41: 4020 | C41: 350 | D41: 3000 | F41: 2 | G41: 1 | H41: 750 | I41: 750 | J41: 4.389132617 | K41: 0.8233490211 | O41: 0.7996121542 | P41: 0.865059848 | Q41: 6 | R41: 3.9 | S41: 2 | T41: 46.8 | U41: 6.98022
A42: PianoP2-M-20 | B42: 900 | C42: 350 | D42: 3000 | F42: 2 | G42: 1 | H42: 750 | I42: 750 | J42: 3.535984303 | K42: 0.6300872991 | O42: 5.537956337 | P42: 0.9548432876 | Q42: 2 | R42: 3.9 | S42: 2 | T42: 15.6 | U42: 2.32674
A43: PianoP2-M-22 | B43: 7060 | C43: 550 | D43: 3000 | F43: 2 | G43: 1 | H43: 750 | I43: 750 | J43: 4.206231144 | K43: 0.7755015736 | O43: 0.7927678121 | P43: 1.002053682 | Q43: 10 | R43: 4.3 | S43: 2 | T43: 86 | U43: 12.8269
A44: PianoP2-M-30 | B44: 1360 | C44: 550 | D44: 3000 | F44: 2 | G44: 1 | H44: 750 | I44: 750 | J44: 0.8100138177 | K44: 0.7410772363 | O44: 1.574022654 | P44: 1.11068281 | Q44: 2 | R44: 4.3 | S44: 2 | T44: 17.2 | U44: 2.56538
A45: PianoP2-M-38 | B45: 7170 | C45: 550 | D45: 3000 | F45: 2 | G45: 1 | H45: 750 | I45: 750 | J45: 5.485138959 | K45: 0.9036953372 | O45: 0.8732954741 | P45: 0.8002530406 | Q45: 10 | R45: 4.3 | S45: 2 | T45: 86 | U45: 12.8269
O46: 0.908085431 | P46: 1.113251832 | R46: 0.2
O47: 0.7885843445 | P47: 0.8155319942 | R47: 0.2
O48: 4.621550603 | P48: 1.336049917 | R48: 0.2
O49: 0.9178257174 | P49: 0.9969469596 | R49: 0.2
O50: 1.653224122 | P50: 0.964184484 | R50: 0.2
O51: 0.8912717825 | P51: 0.8195778907 | R51: 0.2
O52: 0.8513829116 | P52: 0.847235645 | R52: 0.2
O53: 1.987401683 | P53: 1.272321298 | R53: 0.2
O54: 0.9813170317 | P54: 0.856643468 | U54: =SUM(U5:U53) -> 
O55: 3.281260552 | P55: 1.11881133
O56: 0.8072146018 | P56: 0.7614681159
O57: 2.019599501 | P57: 1.100320538
O58: 0.8581847494 | P58: 0.85918117
O59: 4.0945754 | P59: 1.122553573
O60: 0.8908347252 | P60: 0.8181369997
O61: 2.335559377 | P61: 1.509084028
O62: 1.039936646 | P62: 0.8033756091
O63: 0.8214874376 | P63: 1.148322602
O64: 10.32964233 | P64: 1.703072706
O65: 1.485988069 | P65: 1.25605018
O66: 1.158343423 | P66: 1.097091607
O67: 0.8729677902 | P67: 1.363148794
O68: 1.981166394 | P68: 0.8709273508
O69: 2.871827262 | P69: 1.041828228
O70: 1.547138578 | P70: 1.008851847
O71: 1.81308755 | P71: 1.040423618
O72: 1.81308755 | P72: 1.040423618
